Cogmind - Beta 10.2 @@@ ROGUE MODE // 2021.06.20 @ 04:06:01 Player: Mares Result: Destroyed by Tracker with Linked Autogun Performance ------------- Evolutions (9) 4500 Regions Visited (38) 7600 Robots Destroyed (660) 3300 Value Destroyed (31097) 31097 Prototype IDs (67) 1340 Alien Tech Used (4) 800 Bonus (18359) 18359 TOTAL SCORE: 66996 Bonus ------- Triggered High Security 500 High Alert Combat Kills 6825 Follower Combat Kills 2791 Entered Garrisons 600 Used RIF Installer 1500 Network Hubs Disabled 400 Met Data Miner 300 Built Enhanced Grunts 300 A7 Reached Mainframe 300 Met R17 at Cetus 500 Found Hidden Lab 3000 Used Core Reset Matrix 3000 Scanned by Researcher 500 Pursued by Intercept 2000 Friendly Fire -4157 Cogmind --------- Core Integrity 0/1600 Matter 212/300 Energy 100/100 System Corruption 11% Temperature Cool (0) Movement Core (50) Location -1/Access Parts ------- > --- POWER (1) -------- (None) > --- PROPULSION (6) --- (None) > --- UTILITY (15) ----- (None) > --- WEAPON (4) ------- (None) > --- INVENTORY (4) ---- Potential Cannon Peak State ------------ > --- POWER ------------ Cooled Fission Core > --- PROPULSION ------- Advanced Heavy Siege Treads Advanced Heavy Siege Treads > --- UTILITY ---------- High-capacity Storage Unit High-capacity Storage Unit High-capacity Storage Unit Experimental Energy Well Advanced Armor Integrity Analyzer Experimental Transmission Jammer Centrium Medium Armor Plating Centrium Medium Armor Plating Centrium Medium Armor Plating Experimental Powered Armor Medium Regenerative Plating Experimental Hacking Suite Deep Network Scanner > --- WEAPON ----------- Hypervelocity Railgun Hypervelocity Railgun Hypervelocity Railgun Hardcell Cannon > --- INVENTORY -------- Cooled Fission Core Quantum Reactor Heavy Siege Treads Centrium Heavy Treads Advanced Heavy Siege Treads Advanced Matter Compressor Hardened Heavy Armor Plating Centrium Medium Armor Plating Centrium Medium Armor Plating Long-range Tractor Beam Transdimensional Reconstructor Tachyon Dispersion Ray Heavy Proton Cannon Warp Cannon Hypervelocity Railgun Hardcell Cannon Hypervelocity Mass Driver Smartbomb Launcher Micro-nuke Launcher Micro-nuke Launcher Guided Remote Datajack [Rating: 184] Favorites ----------- Power Quantum Reactor Engine Improved Deuterium Engine Power Core Cooled Fission Core Reactor Quantum Reactor Propulsion Medium Treads Treads Medium Treads Leg Carbon-fiber Leg Wheel Armored Huge Wheel Utility High-capacity Storage Unit Device Experimental Sensor Array Storage High-capacity Storage Unit Processor Advanced Signal Interpreter Hackware Improved Hacking Suite Protection Centrium Medium Armor Plating Weapon Improved KE Penetrator Energy Gun Gatling Laser Energy Cannon Warp Cannon Ballistic Gun Improved KE Penetrator Ballistic Cannon Hypervelocity Mass Driver Launcher Micro-nuke Launcher Special Weapon Remote Datajack Impact Weapon Shock Maul Slashing Weapon Axe Piercing Weapon Heavy Pick Build | -11 -10 -10 -10 -9 -8 -8 -8 -8 -7 -7 -7 -7 -7 -7 -6 -6 -6 -6 -6 -6 -6 -5 -5 -5 -5 -5 -5 -5 -5 -4 -4 -4 -4 -4 -3 -3 -2 -1 ------- Run | Scr Mat Min Exi Min Mat Gar Mat Gar Fac Was Fac Low Low Zio Pro Fac Gar Fac Low Low Dat Pro Fac Was Fac Ext Cet Arc Hub Fac Was Fac Arm Lab Res Tes Res Acc Slots Evolved 18 | . . . . . 4 . . . 2 . . . . . . 2 . . . . . . 2 . . . . . . 2 . . . . 2 . 2 2 Power . | . . . . . . . . . . . . . . . . . . . . . . . . . . . . . . . . . . . . . . . Propulsion 4 | . . . . . 1 . . . 1 . . . . . . . . . . . . . . . . . . . . . . . . . . . 2 . Utility 13 | . . . . . 2 . . . 1 . . . . . . 2 . . . . . . 2 . . . . . . 2 . . . . 2 . . 2 Weapon 1 | . . . . . 1 . . . . . . . . . . . . . . . . . . . . . . . . . . . . . . . . . Parts Attached 807 | 7 18 6 3 3 44 9 24 1 38 10 32 . 5 . 10 30 16 21 4 17 . 13 60 16 22 29 8 7 8 11 7 47 74 23 51 56 69 8 Power 32 | 1 2 1 . . 5 1 1 . 3 . . . 1 . . 1 1 . . . . 1 1 1 . 1 1 . . . . 2 2 . 1 2 2 1 Engine 14 | 1 2 1 . . 4 . . . 3 . . . 1 . . 1 . . . . . 1 . . . . . . . . . . . . . . . . Core 6 | . . . . . 1 1 1 . . . . . . . . . . . . . . . 1 . . . . . . . . . 1 . 1 . . . Reactor 12 | . . . . . . . . . . . . . . . . . 1 . . . . . . 1 . 1 1 . . . . 2 1 . . 2 2 1 Propulsion 101 | 2 6 3 . . 8 2 8 . 4 1 8 . . . . 3 2 . . 3 . 3 10 4 . . 1 . . . 3 1 3 1 3 4 17 1 Treads 72 | . . . . . . . 7 . 3 1 7 . . . . 2 1 . . 2 . 3 8 4 . . 1 . . . 3 1 3 1 3 4 17 1 Leg 12 | . 4 . . . 3 2 1 . . . . . . . . . . . . 1 . . 1 . . . . . . . . . . . . . . . Wheel 17 | 2 2 3 . . 5 . . . 1 . 1 . . . . 1 1 . . . . . 1 . . . . . . . . . . . . . . . Hover . | . . . . . . . . . . . . . . . . . . . . . . . . . . . . . . . . . . . . . . . Flight . | . . . . . . . . . . . . . . . . . . . . . . . . . . . . . . . . . . . . . . . Utility 350 | 2 2 . 3 . 6 2 5 . 14 3 10 . 2 . 4 12 3 10 2 3 . 5 26 6 17 13 2 5 6 8 3 34 47 16 28 23 26 2 Device 176 | . . . . . 3 1 2 . 5 1 5 . 1 . 1 6 1 5 2 1 . 2 14 3 12 10 2 4 2 4 . 19 26 8 11 8 15 2 Storage 29 | 2 2 . 3 . . . . . . . 1 . . . 1 1 . . . . . . 3 1 1 2 . . . 2 . 2 1 1 2 3 1 . Processor 27 | . . . . . . . . . 2 1 . . . . . 1 . 1 . . . . . 1 2 . . . 2 . . 1 5 . 4 5 2 . Hackware 19 | . . . . . 2 . . . 2 1 . . . . . 2 . . . . . . 2 1 . . . . 1 1 1 . . 2 1 1 2 . Protection 99 | . . . . . 1 1 3 . 5 . 4 . 1 . 2 2 2 4 . 2 . 3 7 . 2 1 . 1 1 1 2 12 15 5 10 6 6 . Artifact . | . . . . . . . . . . . . . . . . . . . . . . . . . . . . . . . . . . . . . . . Weapon 324 | 2 8 2 . 3 25 4 10 1 17 6 14 . 2 . 6 14 10 11 2 11 . 4 23 5 5 15 4 2 2 3 1 10 22 6 19 27 24 4 Energy Gun 68 | 2 . . . . 11 . 4 . 3 . 7 . 1 . 1 4 5 1 . 1 . . 2 . 1 . 1 . . . . . 2 1 1 9 11 . Energy Cannon 51 | . . . . . . 1 3 . 1 . . . . . 1 1 2 3 . 2 . 3 5 1 1 9 . . . . . 1 1 3 3 3 6 1 Ballistic Gun 90 | . 6 1 . 1 7 2 2 . 7 2 6 . . . 2 3 2 1 . 3 . . 7 1 1 . 3 2 . 1 . 2 11 . 7 8 2 . Ballistic Cannon 38 | . 1 1 . . 5 . . . . . . . . . . . . 1 . 1 . . 4 1 1 2 . . 1 1 . 3 3 1 7 2 3 . Launcher 43 | . . . . 2 2 1 . 1 2 2 1 . 1 . 1 1 1 . 1 4 . 1 4 . . 3 . . . 1 . 2 1 . 1 5 2 3 Special Weapon 17 | . . . . . . . . . 1 2 . . . . . . . 1 1 . . . 1 2 1 1 . . 1 . 1 1 3 1 . . . . Impact Weapon 1 | . . . . . . . . . . . . . . . . . . 1 . . . . . . . . . . . . . . . . . . . . Slashing Weapon 15 | . 1 . . . . . 1 . 3 . . . . . 1 5 . 3 . . . . . . . . . . . . . . 1 . . . . . Piercing Weapon 1 | . . . . . . . . . . . . . . . . . . . . . . . . . . . . . . . . 1 . . . . . . Special Melee Weapon . | . . . . . . . . . . . . . . . . . . . . . . . . . . . . . . . . . . . . . . . Unidentified Prototypes 56 | . . . . . 1 . 4 . . . 1 . . . . 2 1 2 . . . . 3 1 . . 3 . . 1 . 3 3 13 3 9 6 . Parts Lost 199 | . 7 5 . . 17 5 4 . 6 1 6 . 1 . . 3 3 . . 3 . 6 22 2 . . . . . . . 5 3 1 27 18 43 11 Power 12 | . 1 1 . . 2 . . . . . . . 1 . . . . . . . . . 1 . . . . . . . . 1 . . 1 1 3 . Propulsion 52 | . 3 3 . . 4 1 1 . 2 1 3 . . . . . 1 . . 1 . 3 7 1 . . . . . . . 1 . . 3 2 11 4 Utility 72 | . . . . . 4 1 1 . 1 . . . . . . . 1 . . 1 . 1 8 . . . . . . . . 3 2 1 15 8 19 6 Weapon 63 | . 3 1 . . 7 3 2 . 3 . 3 . . . . 3 1 . . 1 . 2 6 1 . . . . . . . . 1 . 8 7 10 1 Highest Loss Streak 11 | . 2 5 . . 5 3 2 . 2 1 2 . 1 . . 1 2 . . 3 . 3 5 2 . . . . . . . 3 1 1 7 4 11 9 Average Slot Usage (%) 89 | . 99 98 100 100 96 99 99 100 99 94 90 92 91 92 91 90 92 93 89 93 100 91 88 81 81 81 81 86 80 81 86 88 85 88 85 81 79 30 Engine 2 | . 14 13 14 14 5 . . . 5 7 7 7 6 7 7 5 4 . . . . 2 3 . . . . . . . . . . . . . . . Core 1 | . . . . . 2 9 9 9 1 . . . . . . . . . . . . . 1 2 . . . . . . . . 2 5 4 1 . . Reactor 1 | . . . . . . . . . . . . . . . . . 1 6 6 6 6 3 . 2 5 4 5 5 5 5 5 5 2 . . 2 3 . Treads 11 | . . . . . . . 16 27 26 29 18 15 15 15 15 13 11 13 13 16 26 19 15 10 11 11 11 11 11 10 10 10 9 10 9 9 13 9 Leg 2 | . 14 . . . 15 22 10 . . . . . . . . . . . . . . . . . . . . . . . . . . . . . . . Wheel 2 | . 13 26 28 28 10 4 . . 3 . 3 7 7 7 7 5 7 6 6 3 . . . . . . . . . . . . . . . . . . Device 9 | . . . . . 8 11 7 9 3 . 4 7 6 7 6 8 6 5 6 6 6 3 13 4 7 10 11 21 9 17 12 13 13 10 12 10 13 7 Storage 17 | . 28 28 28 28 18 18 18 18 15 15 15 15 15 15 15 19 20 20 20 20 20 20 17 17 17 17 17 17 17 15 15 15 15 19 19 15 12 . Processor 6 | . . . . . . . . . 8 7 7 7 7 7 7 6 6 10 13 13 13 13 6 5 5 5 5 5 5 5 5 5 7 5 4 13 11 8 Hackware 5 | . . . . . 5 . . . 5 14 5 . . . . 5 6 6 6 3 . . 4 10 7 5 5 5 4 10 14 10 6 9 7 5 4 2 Protection 5 | . . . . . 2 6 10 9 4 . 4 7 7 7 7 3 5 2 . 2 6 8 4 5 5 4 5 . 4 1 5 9 9 9 10 4 4 . Energy Gun 3 | . 1 . . . 16 2 12 . 3 . 6 . 6 7 7 8 12 6 . 1 . . . . . . 1 . . . . . 1 4 1 5 5 . Energy Cannon 3 | . . . . . . 8 3 18 4 . . . . . 5 2 1 4 4 4 6 11 4 6 8 10 2 . . . . 3 . 4 2 1 1 . Ballistic Gun 7 | . 25 14 14 15 7 12 10 4 9 6 11 23 15 15 4 3 4 1 . 7 13 3 8 2 1 . 11 16 7 6 10 9 10 . 5 4 1 . Ballistic Cannon 2 | . . 14 14 1 3 . . . . . . . . . . . . 1 3 1 . . 1 . 4 4 . . 4 5 . 1 2 4 5 2 3 . Naked Turns 1 | . . . . . . . . . . . . . . . . . . . . . . . . . . . . . . . . . . . . . . 1 Heaviest Build 190 | 15 50 48 72 73 85 85 96 94 94 90 116 90 90 89 94 130 127 133 128 136 130 148 158 158 188 162 153 151 183 186 153 162 190 171 188 177 173 7 Greatest Support 235 | 32 32 32 32 32 48 47 60 60 80 80 80 28 28 28 28 28 40 28 28 112 112 116 140 140 140 140 150 150 150 150 150 160 160 160 160 160 235 3 Greatest Overweight (x) 6 | . 2 1 2 2 5 5 2 1 5 1 5 3 3 3 3 6 4 4 4 4 1 2 3 2 1 1 2 1 1 1 1 1 2 1 1 1 1 2 Average Overweight (x) 1 | . . 1 1 2 3 3 1 1 3 1 2 3 2 3 2 3 3 4 4 3 1 1 . 1 1 . . . 1 . . . . . . . . . Largest Inventory Capacity 36 | 8 16 16 20 20 20 20 20 20 20 20 20 20 20 20 20 28 28 28 28 28 28 28 28 28 28 28 28 28 28 36 28 28 28 28 32 28 28 4 Average Capacity 24 | 6 11 16 17 20 20 20 20 20 20 20 20 20 20 20 20 26 28 28 28 28 28 28 28 27 28 28 28 28 28 28 28 28 28 28 28 28 22 4 Most Carried 28 | 6 12 14 13 13 20 20 20 20 20 20 20 20 20 19 20 28 28 28 28 28 28 28 28 28 28 28 28 28 28 28 28 28 28 28 28 28 28 4 Average Carried 23 | 3 9 10 10 12 18 19 19 20 19 17 18 20 18 18 19 25 27 27 27 27 28 27 26 25 27 27 27 27 27 27 27 27 27 27 22 25 20 3 Final Capacity 28 | 8 16 16 20 20 20 20 20 20 20 20 20 20 20 20 20 28 28 28 28 28 28 28 28 28 28 28 28 28 28 28 28 28 28 28 28 28 4 4 Final Carried 28 | 6 12 10 12 13 20 20 20 20 20 17 20 20 18 19 20 28 27 28 28 28 28 27 25 28 28 28 28 28 28 28 28 23 27 28 25 27 4 2 Class Distribution -------------------- 19% | Hauler-Mutant 14% | Bothacker-Mutant 11% | Scavenger-Mutant 11% | Hacker-Mutant 8% | Hauler-Tank 7% | Scavenger-Skirmisher 5% | Scavenger-Tank 4% | Mutant Dominant Class ---------------- Mutant | -10/Materials Mutant | -10/Mines Mutant | -10/Exiles Hauler-Mutant | -9/Mines Hauler-Gunner | -8/Materials Scavenger-Mutant | -8/Garrison Hauler-Tank | -8/Materials Hauler-Mutant | -8/Garrison Hauler-Mutant | -7/Factory Scavenger-Mutant | -7/Waste Scavenger-Mutant | -7/Factory Scavenger-Skirmisher | -7/Lower Caves Scavenger-Skirmisher | -7/Lower Caves Scavenger-Skirmisher | -7/Zion Hauler-Mutant | -6/Proximity Caves Hauler-Mutant | -6/Factory Hauler-Tank | -6/Garrison Bothacker-Mutant | -6/Factory Bothacker-Mutant | -6/Lower Caves Bothacker-Mutant | -6/Lower Caves Bothacker-Mutant | -6/Data Miner Bothacker-Mutant | -5/Proximity Caves Bothacker-Mutant | -5/Factory Bothacker-Mutant | -5/Waste Hauler-Mutant | -5/Factory Hauler-Mutant | -5/Extension Commander-Skirmisher | -5/Cetus Scavenger-Skirmisher | -5/Archives Commander-Mutant | -5/Hub_04(d) Hauler-Mutant | -4/Factory Hauler-Mutant | -4/Waste Hauler-Mutant | -4/Factory Hauler-Mutant | -4/Armory Hacker-Mutant | -4/Lab Hacker-Mutant | -3/Research Hauler-Mutant | -3/Testing Scavenger-Mutant | -2/Research Alien-Mutant | -1/Access Resources | -11 -10 -10 -10 -9 -8 -8 -8 -8 -7 -7 -7 -7 -7 -7 -6 -6 -6 -6 -6 -6 -6 -5 -5 -5 -5 -5 -5 -5 -5 -4 -4 -4 -4 -4 -3 -3 -2 -1 ----------- Run | Scr Mat Min Exi Min Mat Gar Mat Gar Fac Was Fac Low Low Zio Pro Fac Gar Fac Low Low Dat Pro Fac Was Fac Ext Cet Arc Hub Fac Was Fac Arm Lab Res Tes Res Acc Matter Collected 26861 | 260 840 78 200 69 1180 190 571 3 759 . 1180 205 233 . 209 362 359 166 175 460 . 221 1954 293 542 1221 170 329 257 250 973 914 4109 328 4061 1816 1892 32 Remotely 1261 | . . . . . . . . . . . . . . . . . . . . . . . . . . . . . . . . . . . 1261 . . . Salvage Created 35431 | 51 845 78 . 167 1096 370 1766 15 928 218 1534 268 127 . 333 324 694 199 181 1015 . 217 3091 827 640 1409 156 231 1279 . 1339 1243 3578 90 5161 2189 3645 127 Parts 1517 | 2 68 6 . 8 74 23 87 3 47 4 64 . 12 . 11 13 23 8 9 25 . 6 124 16 30 50 7 19 52 . 15 45 172 8 228 91 160 7 Haulers Intercepted 17 | . 2 . . . 3 . 5 . 1 . 1 . . . . . . 1 . . . . 2 . . . . . 2 . . . . . . . . . Recyclers Shooed 39 | . 1 . . . 2 . 3 . 2 . 3 . . . . . . . . . . . 5 . 1 . . . 1 . . 2 . . 15 . 3 1 Parts Field Recycled . | . . . . . . . . . . . . . . . . . . . . . . . . . . . . . . . . . . . . . . . Retrieved Matter . | . . . . . . . . . . . . . . . . . . . . . . . . . . . . . . . . . . . . . . . Parts Self-Destructed 41 | . . . . . . . . . . . . . 7 . 8 . . . 8 11 . 7 . . . . . . . . . . . . . . . . Prevented 7 | . . . . . . . . . . . . . . . . . . . . 1 . 6 . . . . . . . . . . . . . . . . Kills | -11 -10 -10 -10 -9 -8 -8 -8 -8 -7 -7 -7 -7 -7 -7 -6 -6 -6 -6 -6 -6 -6 -5 -5 -5 -5 -5 -5 -5 -5 -4 -4 -4 -4 -4 -3 -3 -2 -1 ------- Run | Scr Mat Min Exi Min Mat Gar Mat Gar Fac Was Fac Low Low Zio Pro Fac Gar Fac Low Low Dat Pro Fac Was Fac Ext Cet Arc Hub Fac Was Fac Arm Lab Res Tes Res Acc Combat Hostiles Destroyed 454 | . 16 4 . 5 18 12 23 4 12 1 17 . 4 . 6 4 13 2 3 15 . 3 38 3 3 25 2 1 2 . 5 14 51 1 61 40 41 5 Melee 1 | . . . . . . . . . . . . . . . . . . . . . . . . . . . . . . . . . . . . 1 . . Guns 238 | . 16 2 . 2 14 2 21 . 9 . 15 . 2 . . 3 8 2 . 3 . 1 19 1 1 . . 1 1 . 5 8 43 . 21 17 21 . Cannons 88 | . . 2 . . 1 2 2 2 1 . . . . . 2 1 1 . . 2 . . 11 2 2 9 . . 1 . . 4 6 1 22 8 6 . AOE 112 | . . . . 3 3 7 . 2 1 1 1 . 2 . 4 . 3 . 3 9 . 2 7 . . 16 . . . . . 2 2 . 16 11 12 5 Classes Destroyed 26 | 1 6 1 . 1 4 . 1 . 1 1 . . . . 1 . . . 1 1 . . 2 . . 1 . . . . . . . . 1 2 1 . Worker 42 | . . . . . 4 . 6 . . . 2 . . . . . . . . . . . 7 . 1 . . . 8 . . . . . 6 1 6 1 Builder 33 | . . . . . 1 . 1 . . . . . . . . . . 1 . . . . 3 . . 1 . . 2 . . 2 . . 11 4 7 . Tunneler 6 | . 2 . . . . . . . . . 1 . . . . . . . . . . . . . . . . . . . . . . . 2 . 1 . Hauler 17 | . 2 . . . 3 . 5 . 1 . 1 . . . . . . 1 . . . . 2 . . . . . 2 . . . . . . . . . Recycler 45 | 1 1 . . . 1 . 2 . 2 . 7 . . . . 1 . . . . . . 7 . 3 2 . . 2 . . 1 . . 7 . 8 . Minesweeper 1 | . . . . . . . . . . . . . . . . . . . 1 . . . . . . . . . . . . . . . . . . . Mechanic 4 | . . . . . . . . . . . . . . . . . . . . . . . 2 . . . . . . . . . . . 1 . 1 . Operator 11 | . 4 . . . 1 . . . . . . . . . . . . . . . . . . . . 1 . 4 . . . . 1 . . . . . Watcher 33 | . 3 . . . 3 . 3 . 2 . 3 . . . . . . . . . . . 4 . 2 1 . . 1 . . . 1 . 4 1 5 . Swarmer 64 | . 6 3 . . 3 4 2 4 . . . . 4 . . . 8 . 3 1 . 1 1 . . 4 . . . . . . . . 11 4 . 5 Saboteur 2 | . . . . . . . . . . . . . . . . . . . . . . . . . . 1 . . . . . . . . . 1 . . Grunt 139 | . 10 . . 4 4 5 12 . 2 . 6 . . . 4 . 2 . . 6 . 1 17 . . 17 . . . . . 3 7 . 21 8 10 . Brawler 17 | . . . . . . . 1 . . . 1 . . . . . . . . 1 . . 1 . . 1 . . . . . . 6 . 2 3 1 . Duelist 18 | . . . . 1 1 1 . . . . . . . . . . . . . 1 . . 4 . . . . . . . . . 5 . 2 . 3 . Protector 2 | . . . . . . . . . . . . . . . . . . . . . . . 1 . . . . . . . . . 1 . . . . . Researcher 1 | . . . . . . . . . . . . . . . . . . . . . . . . . . . . . . . . . . . . 1 . . Sentry 46 | . . . . . 7 1 6 . 4 . 6 . . . . 1 1 1 . . . . 3 . . 1 . 1 1 . . 3 3 . 4 . 3 . Demolisher 3 | . . 1 . . . . . . . . . . . . . . . . . . . . . . . 1 . . . . . . 1 . . . . . Specialist 3 | . . . . . . . . . . . . . . . . . . . . . . . . . . . . . . . . . . . . 3 . . Hunter 42 | . . . . . 3 1 2 . 1 . . . . . 1 . 2 . . . . . 3 . 1 . . . 1 . . 3 6 . 4 10 4 . Programmer 76 | . . . . . . . . . 5 . 4 . . . 1 3 . 1 . . . 1 8 . 2 . . . . . . 5 23 . 7 5 11 . Q-Series 5 | . . . . . . . . . . . . . . . . . . . . . . . . . . . . . . . . . . . . . 5 . Behemoth 2 | . . . . . . . . . . . . . . . . . . . . . . . . . . . . . . . . . . . 2 . . . Compactor 9 | . . . . . . . . . . 1 . . . . . . . . . . . . . 3 . . . . . . 5 . . . . . . . Cetus Guard 2 | . . . . . . . . . . . . . . . . . . . . . . . . . . . 2 . . . . . . . . . . . Enhanced Grunt 4 | . . . . . . . . . . . . . . . . . . . . . . . . . . . . . 4 . . . . . . . . . Tracker 9 | . . . . . . . . . . . . . . . . . . . . . . . . . . . . . . . . . . . 4 3 2 . Combat Programmer 9 | . . . . . . . . . . . . . . . . . . . . . . . . . . . . . . . . . . . 4 3 2 . Packrat 4 | . . . . . . . . . . . . 3 1 . . . . . . . . . . . . . . . . . . . . . . . . . Samaritan 6 | . . . . . . . . . . . . . . . 1 . . . 3 . . 2 . . . . . . . . . . . . . . . . Wasp 1 | . . . . . . . . . . . . . . . . . . . . . . . . . . . . . . . . 1 . . . . . . Thug 3 | . . . . . . . . . . . . . . . . . . . . 1 . . . . . . . . 1 . . 1 . . . . . . Savage 2 | . . . . . . . . . . . . . . . . . . . . 1 . . . . . . . . 1 . . . . . . . . . Butcher 4 | . . . . . . . . . . . . . . . . . . . . 3 . . . . . 1 . . . . . . . . . . . . Martyr 2 | . . . . . . . . . . . . . . . . . . . . . . . . . . . . . . . 2 . . . . . . . Guerrilla 1 | . . . . . . . . . . . . . . . . . . . . . . . . . . 1 . . . . . . . . . . . . Mutant 1 | . . . . . . . . . . . . . . . . . . . . 1 . . . . . . . . . . . . . . . . . . Best Kill Streak 19 | 1 4 3 . 3 5 7 7 4 2 1 4 . 4 . 4 1 4 2 3 6 . 2 6 1 2 8 2 2 12 . 1 4 6 1 19 13 11 5 Combat Bots Only 15 | . 3 3 . 3 3 7 4 4 2 1 3 . 4 . 4 1 4 1 3 6 . 2 4 1 2 8 2 1 1 . 1 2 6 1 15 8 5 5 Max Kills in Single Turn 14 | 1 1 1 . 1 2 2 2 2 1 1 1 1 3 . 2 1 3 1 3 2 . 2 5 1 1 4 1 1 14 . 2 2 2 1 5 5 6 4 Gunslinging . | . . . . . . . . . . . . . . . . . . . . . . . . . . . . . . . . . . . . . . . Exploded 5 | . . . . 1 2 2 . 1 1 1 1 . 2 . 2 . 3 . 3 2 . 2 2 . . 4 . . . . . 2 2 . 3 5 4 4 Melee 1 | . . . . . . . . . . . . . . . . . . . . . . . . . . . . . . . . . . . . 1 . . Uniques/NPCs Destroyed 1 | . . . . . . . . . . . . . . . . . . . . . . . . . . . . . . . . . . 1 . . . . A5 (-4/Lab) Combat | -11 -10 -10 -10 -9 -8 -8 -8 -8 -7 -7 -7 -7 -7 -7 -6 -6 -6 -6 -6 -6 -6 -5 -5 -5 -5 -5 -5 -5 -5 -4 -4 -4 -4 -4 -3 -3 -2 -1 -------- Run | Scr Mat Min Exi Min Mat Gar Mat Gar Fac Was Fac Low Low Zio Pro Fac Gar Fac Low Low Dat Pro Fac Was Fac Ext Cet Arc Hub Fac Was Fac Arm Lab Res Tes Res Acc Damage Taken 55285 | . 1010 309 . 126 1669 557 1033 37 1369 111 1757 . 250 . 239 402 1036 125 . 673 . 854 4686 146 60 471 . 57 355 . . 2427 3162 444 10877 6033 10754 4256 Core 5259 | . 189 34 . 24 243 61 150 . 151 . 196 . 14 . 22 24 97 . . 60 . 130 259 . . 20 . . 46 . . 46 193 . 498 202 982 1618 Absorbed by Shields 856 | . . . . . . . . . . . . . . . . . . . . . . . 168 . . 193 . . . . . . . . 495 . . . Reduced by Siege Mode 3014 | . . . . . . . . . . . . . . . . . . . . . . . 216 . . 17 . . . . . 51 228 39 1004 625 834 . Core Remaining (%) 49 | 100 . . . 1 . . . 17 . . . . . . 45 . . . . . . 63 . . . . . . 67 . . . . 79 . 38 32 . Volleys Fired 2036 | 2 103 18 . 14 63 24 78 3 52 10 80 7 8 . 35 15 51 8 16 54 . 24 167 64 54 93 7 15 17 7 75 88 191 36 223 149 180 5 Largest 4 | 2 2 2 . 2 3 3 3 2 3 3 3 3 3 . 3 3 3 3 1 3 . 3 3 2 3 3 3 3 3 2 2 3 3 3 4 4 4 1 Hottest 360 | 80 80 55 . 53 195 125 168 111 188 84 178 84 136 . 173 188 188 198 90 198 . 219 223 196 254 254 144 105 105 101 70 190 174 200 266 234 360 46 Shots Fired 4157 | 4 206 33 . 28 179 46 224 6 124 16 183 19 21 . 50 41 104 20 16 65 . 40 360 88 80 127 12 47 31 8 146 169 421 60 542 288 348 5 Gun 2692 | 4 206 18 . 18 140 23 207 . 91 11 173 19 18 . 13 31 88 11 . 21 . 11 182 18 5 . 3 47 19 1 142 97 366 25 281 183 220 . Cannon 1296 | . . 15 . . 35 17 17 3 25 . . . . . 34 10 9 8 14 31 . 28 165 64 72 106 9 . 11 4 . 70 45 35 250 94 125 . Launcher 120 | . . . . 10 4 6 . 3 6 2 9 . 3 . 3 . 7 . 1 13 . 1 8 . . 11 . . . . . . 3 . 11 11 3 5 Special 49 | . . . . . . . . . 2 3 1 . . . . . . 1 1 . . . 5 6 3 10 . . 1 3 4 2 7 . . . . . Kinetic 2527 | . 200 33 . 18 114 14 88 . 67 11 98 19 15 . 6 12 16 5 . 23 . 11 255 18 21 26 3 47 30 5 142 114 388 33 420 148 127 . Thermal 1116 | 4 6 . . . 29 . 125 3 49 . 75 . 3 . 41 29 8 10 14 24 . 9 75 64 56 80 . . . . . 53 23 27 72 102 135 . Explosive 97 | . . . . 10 4 6 . 3 . 2 . . 3 . 3 . 7 . 1 8 . 1 5 . . 11 . . . . . . 3 . 11 11 3 5 Electromagnetic 368 | . . . . . 32 26 11 . 6 . 9 . . . . . 73 4 . 10 . 19 20 . . . 9 . . . . . . . 39 27 83 . Robot Hit Streak 67 | 1 12 3 . 4 18 10 20 3 14 18 15 6 5 . 4 11 14 13 15 10 . 18 47 10 11 37 4 8 25 6 25 18 36 7 26 57 67 5 Robot Miss Streak 9 | 1 4 4 . 3 5 2 4 . 4 2 7 4 5 . 4 3 6 2 1 1 . 1 9 3 2 2 2 2 2 . 2 4 6 2 4 5 3 . Penetration Max 3 | . . . . . 1 . 1 . . . . . . . . . . . . . . . 1 . . . . . 1 . 1 1 3 . 2 1 1 . Secondary Targets 14 | . 2 . . . . . 2 . . . 1 . . . . . . . . . . . 1 . . . . . . . 1 1 2 . 1 3 . . Max Gunslinging Chain 1 | . 1 . . . . . 1 . . . 1 . . . . . . . . . . . 1 . . . . . . . 1 1 1 . 1 1 . . Shots Hit Robots 2832 | 2 120 15 . 15 124 24 134 2 106 16 155 15 16 . 12 34 63 13 9 24 . 28 242 63 26 68 8 36 19 5 128 97 310 38 381 224 256 4 Core Hits 1640 | 2 44 5 . 8 77 20 60 6 51 7 137 15 13 . 20 17 33 7 5 36 . 12 155 13 13 76 2 11 34 1 17 37 158 18 225 130 166 9 Critical Hits 372 | . 1 . . 2 3 1 1 . . . . . . . . . . . . 2 . 2 13 2 3 4 . 8 3 1 25 8 118 9 130 17 19 . Critical Kills 107 | . 1 . . 1 1 . . . . . . . . . . . . . . 1 . . 7 . 2 1 . 3 1 . 4 3 36 . 37 4 5 . Critical Parts Destroyed 205 | . . . . 1 2 1 1 . . . . . . . . . . . . 1 . 2 5 . 1 3 . 4 2 1 5 5 76 8 69 10 8 . Melee Attacks 48 | . 3 . . . . . 1 . 14 . . . . . . 23 . 2 4 . . . . . . . . . . . . 1 . . . . . . Impact 4 | . . . . . . . . . . . . . . . . . . . 4 . . . . . . . . . . . . . . . . . . . Slashing 43 | . 3 . . . . . 1 . 14 . . . . . . 23 . 2 . . . . . . . . . . . . . . . . . . . . Piercing 1 | . . . . . . . . . . . . . . . . . . . . . . . . . . . . . . . . 1 . . . . . . Sneak Attacks 10 | . 2 . . . . . . . 2 . . . . . . 2 . 1 3 . . . . . . . . . . . . . . . . . . . Combat Hostiles . | . . . . . . . . . . . . . . . . . . . . . . . . . . . . . . . . . . . . . . . Follow-up Attacks . | . . . . . . . . . . . . . . . . . . . . . . . . . . . . . . . . . . . . . . . Damage Inflicted 93550 | 23 1555 193 . 419 2390 1306 2819 371 2425 799 2378 261 302 . 526 787 1365 320 765 2023 . 919 9638 2187 855 5387 321 851 2601 60 3570 3665 5450 589 11309 9162 15109 850 Guns 38427 | 23 1373 103 . 104 1554 308 2463 . 1517 377 2028 261 130 . 115 445 896 187 . 241 . 228 3890 399 82 . 79 851 419 23 3570 2062 3342 109 2234 3727 5287 . Cannons 26439 | . . 90 . . 361 294 236 50 343 . . . . . 89 143 216 37 199 221 . 372 2984 1788 735 2218 242 . 162 37 . 1371 884 480 5311 2940 4636 . Explosions 27364 | . . . . 315 475 704 120 321 383 422 300 . 172 . 322 . 253 . 268 1561 . 319 2760 . . 3169 . . 2012 . . 232 1224 . 3764 2495 4974 799 Melee 957 | . 182 . . . . . . . 182 . . . . . . 199 . 96 298 . . . . . . . . . . . . . . . . . . . Ramming 363 | . . . . . . . . . . . 50 . . . . . . . . . . . 4 . 38 . . . 8 . . . . . . . 212 51 Kinetic 37883 | . 1340 193 . 104 1252 191 819 . 1107 377 1136 261 98 . 38 164 189 48 . 294 . 228 5454 399 471 781 79 851 581 60 3570 2145 3549 192 5132 3439 3341 . Thermal 25878 | 23 33 . . . 345 42 1809 50 753 . 892 . 32 . 166 424 190 176 199 32 . . 2439 1788 346 1437 . . . . . 1520 677 397 1833 2712 7563 . Explosive 19067 | . . . . 315 369 662 . 321 . 422 . . 172 . 322 . 253 . 268 1186 . 199 1191 . . 3169 . . . . . . 1224 . 3504 2495 2391 604 Electromagnetic 9402 | . . . . . 424 411 191 . 383 . 300 . . . . . 733 . . 511 . 492 550 . . . 242 . 2012 . . . . . 840 516 1602 195 Impact 298 | . . . . . . . . . . . . . . . . . . . 298 . . . . . . . . . . . . . . . . . . . Slashing 659 | . 182 . . . . . . . 182 . . . . . . 199 . 96 . . . . . . . . . . . . . . . . . . . . Piercing . | . . . . . . . . . . . . . . . . . . . . . . . . . . . . . . . . . . . . . . . Highest Corruption 64 | . . . . . . . . . 7 25 31 31 31 31 31 2 2 4 4 8 8 10 26 26 26 26 26 26 . . . 2 12 19 37 64 35 11 Average Corruption 17 | . . . . . . . . . 2 19 29 31 31 31 31 1 2 3 4 5 8 9 20 26 26 26 26 13 . . . 1 4 18 15 49 27 8 Corruption Purged 26 | . . . . . . . . . . . . . . . . . . . . . . . . . . . . 26 . . . . . . . . . . Effects 1844 | . . . . . . . . . 20 12 164 34 42 20 61 5 10 11 21 30 4 27 187 77 113 128 23 60 . . . 1 95 28 160 324 182 5 Message Errors 244 | . . . . . . . . . 5 2 21 9 4 3 12 1 3 7 5 4 2 5 31 10 17 11 4 7 . . . . 18 4 15 27 16 1 Matter Fused 250 | . . . . . . . . . 5 4 19 7 8 2 10 . . . 7 11 1 3 23 10 18 25 4 13 . . . . 18 5 17 24 15 1 Heat Flow Errors 120 | . . . . . . . . . 3 1 10 . 1 2 3 2 3 1 2 3 . 3 12 5 5 6 3 8 . . . . 15 1 7 13 11 . Energy Discharges 116 | . . . . . . . . . 2 1 9 . 1 . 4 2 . 2 5 3 1 4 10 3 8 7 3 6 . . . . 9 5 5 12 12 2 Parts Rejected 10 | . . . . . . . . . . . 2 . . . . . . . . . . . . 3 . . . . . . . . . . . 1 4 . Data Loss (minor) 122 | . . . . . . . . . 2 . 12 2 3 3 3 . 1 1 2 3 . 4 13 4 10 7 2 7 . . . . 12 2 11 12 6 . Data Loss (major) 35 | . . . . . . . . . . . 3 . 3 1 1 . . . . 1 . . 3 . 6 . 3 1 . . . . . 2 4 4 3 . Misfires 32 | . . . . . . . . . . . . . 1 . 3 . . . . . . . 7 2 3 4 . 2 . . . . . . 3 6 1 . Alerts 19 | . . . . . . . . . . . 3 . . 1 . . . . . . . . 4 2 1 2 . 2 . . . . 1 . 1 . 2 . Misdirections 209 | . . . . . . . . . . 1 18 7 11 8 13 . . . . . . 2 20 10 21 18 1 3 . . . . 1 1 12 49 12 1 Targeting Errors 585 | . . . . . . . . . 3 3 55 7 9 . 11 . 3 . . 4 . 5 55 23 20 40 3 11 . . . 1 20 7 74 151 80 . Weapon Failures 102 | . . . . . . . . . . . 12 2 1 . 1 . . . . 1 . 1 9 5 4 8 . . . . . . 1 1 11 25 20 . Overload Shots 17 | . . . . . . . . . . . . . . . . . . . . . . . . . . . . . . . . 5 . 6 6 . . . Effects 1 | . . . . . . . . . . . . . . . . . . . . . . . . . . . . . . . . 1 . . . . . . Energy Bleed 1 | . . . . . . . . . . . . . . . . . . . . . . . . . . . . . . . . 1 . . . . . . Overflow Damage 3447 | . 98 . . . 216 . . 73 29 . 1 . . . . 158 20 . 294 25 . 54 328 8 27 196 . . 100 . . 114 48 . 348 225 926 159 Projectiles 1034 | . . . . . 5 . . . . . . . . . . 19 . . 28 4 . 27 99 8 22 88 . . 11 . . 109 29 . 107 76 402 . Explosions 1905 | . . . . . 211 . . 73 29 . 1 . . . . . 20 . . 21 . 27 229 . . 108 . . 89 . . 5 19 . 241 149 524 159 Melee 508 | . 98 . . . . . . . . . . . . . . 139 . . 266 . . . . . 5 . . . . . . . . . . . . . Knockbacks 151 | . . 1 . . 11 . . . . . . . . . . . . . 1 . . . 34 . 2 2 . . 1 1 . . 9 1 47 16 25 . Impact 2 | . . . . . . . . . . . . . . . . . . . 1 . . . . . . . . . . . . . . . . . 1 . Kinetic 135 | . . 1 . . 11 . . . . . . . . . . . . . . . . . 28 . 2 2 . . 1 1 . . 9 1 44 13 22 . Secondary 14 | . . . . . . . . . . . . . . . . . . . . . . . 6 . . . . . . . . . . . 3 3 2 . Self-Inflicted Damage 1746 | . . . . . 110 60 15 . 82 12 72 . 97 . . . 154 . . 89 . 18 151 . . 74 . . 19 . . . 193 . 125 276 116 83 Shots 40 | . . . . . 1 2 1 . 2 1 2 . 2 . . . 4 . . 4 . 1 3 . . 1 . . 2 . . . 3 . 3 4 2 2 Rammed 38 | . . . . . . . . . . . 8 . . . . . . . . . . . 1 . 2 . . . 3 . . . . . . . 11 13 Targets Rammed 42 | . . . . . . . . . . . 8 . . . . . . . . . . . 1 . 2 . . . 3 . . . . . . . 15 13 Kicked . | . . . . . . . . . . . . . . . . . . . . . . . . . . . . . . . . . . . . . . . Crushed 4 | . . . . . . . . . . . . . . . . . . . . . . . . . . . . . . . . . . . . . 4 . Highest Temperature 662 | 36 54 . . 9 234 36 303 36 428 95 372 18 226 205 272 243 162 186 257 147 . 325 560 433 397 474 250 370 125 38 96 484 427 318 501 434 662 6 Average Temperature 119 | 20 18 . . 4 60 17 86 18 122 16 109 7 65 96 86 89 39 55 55 60 . 115 129 165 133 94 108 102 40 19 10 116 144 154 151 145 167 6 Received Heat Transfer 5740 | . 429 . . 72 315 81 414 . 147 . 444 . . . 48 54 81 18 . 27 . 126 666 . . 109 . 9 . . . 324 111 . 660 264 1251 90 Effects 78 | . . . . . . . . . 3 . 5 . . 1 1 . . . . . . . 5 8 2 . . 1 . . . 3 12 . 9 5 23 . Shutdowns 8 | . . . . . . . . . . . 1 . . . . . . . . . . . 2 1 . . . . . . . . 1 . . 1 2 . Energy Bleed 16 | . . . . . . . . . 1 . 2 . . 1 1 . . . . . . . . 2 1 . . . . . . 1 1 . 4 . 2 . Interference 37 | . . . . . . . . . . . 1 . . . . . . . . . . . . 4 . . . . . . . 1 9 . 5 4 13 . Matter Decay 3 | . . . . . . . . . 1 . . . . . . . . . . . . . . . . . . . . . . 1 . . . . 1 . Short Circuit 2 | . . . . . . . . . 1 . . . . . . . . . . . . . . . . . . . . . . . . . . . 1 . Damage (minor) 5 | . . . . . . . . . . . 1 . . . . . . . . . . . 1 . 1 . . 1 . . . . 1 . . . . . Damage (major) 6 | . . . . . . . . . . . . . . . . . . . . . . . 2 1 . . . . . . . . . . . . 3 . Damage (core) 1 | . . . . . . . . . . . . . . . . . . . . . . . . . . . . . . . . . . . . . 1 . Siege Activations 123 | . . . . . . . . . . . . . . . . . . . . . . . 13 . 7 9 . 2 4 . 2 14 23 2 21 12 14 . Total Turns 2157 | . . . . . . . . . . . . . . . . . . . . . . . 209 . 71 108 . 10 38 . 50 143 432 129 454 257 256 . Longest Duration 111 | . . . . . . . . . . . . . . . . . . . . . . . 53 . 19 38 . 7 19 . 40 28 47 111 59 80 62 . Robots Corrupted 20 | . . . . . . 1 . . 1 . 1 . . . . . 3 . . 1 . 1 1 . . . 2 . 4 . . . . . 1 3 1 . Combat Hostiles 13 | . . . . . . 1 . . 1 . 1 . . . . . 1 . . 1 . . 1 . . . 2 . . . . . . . 1 3 1 . Parts Fried 50 | . . . . . . 1 . . 2 . 3 . . . . . 7 . 3 4 . 5 . . . . 1 . 17 . . . . . 2 2 2 1 Impact Corruptions 14 | . . . . . . . . . . . . . . . . . . . 12 . . . 1 . 1 . . . . . . . . . . . . . Robots Melted 2 | . . . . . . . . . . . . . . . . . . . . . . . . . . . . . . . . . . . 1 . 1 . Combat Hostiles 2 | . . . . . . . . . . . . . . . . . . . . . . . . . . . . . . . . . . . 1 . 1 . Parts Melted 39 | . . . . . . . 9 1 2 . . . . . . 4 1 2 . . . . 1 . 1 1 . . . . . 1 . 1 2 2 11 . Heat Transferred 29068 | 50 75 . . . 442 50 3419 74 1406 . 720 . 75 . 286 735 425 312 222 37 . . 2378 2570 500 1937 . . . . . 1275 703 457 1782 3040 6098 . Parts Sabotaged 1 | . . . . . . . . . . . . . . . . . . . . . . . . . . . . . . . . . . . . 1 . . Parts Stolen . | . . . . . . . . . . . . . . . . . . . . . . . . . . . . . . . . . . . . . . . Parts Stripped . | . . . . . . . . . . . . . . . . . . . . . . . . . . . . . . . . . . . . . . . Power Chain Reactions 10 | . . . . . . 1 1 . 1 . 3 . . . . . . . . . . 1 . . . . . . . . . . . . 1 . 2 . Missiles Intercepted . | . . . . . . . . . . . . . . . . . . . . . . . . . . . . . . . . . . . . . . . Alert | -11 -10 -10 -10 -9 -8 -8 -8 -8 -7 -7 -7 -7 -7 -7 -6 -6 -6 -6 -6 -6 -6 -5 -5 -5 -5 -5 -5 -5 -5 -4 -4 -4 -4 -4 -3 -3 -2 -1 ------- Run | Scr Mat Min Exi Min Mat Gar Mat Gar Fac Was Fac Low Low Zio Pro Fac Gar Fac Low Low Dat Pro Fac Was Fac Ext Cet Arc Hub Fac Was Fac Arm Lab Res Tes Res Acc Peak Influence 1827 | 5 352 67 . 135 323 519 599 487 658 245 377 . . . . 159 515 346 . . . . 1362 476 222 1300 1123 667 885 456 127 401 707 . 1398 1392 1827 1588 Initial 1100 | . 3 2 . . 52 48 252 389 255 208 171 . . . . 75 . 270 . . . . 25 476 82 44 664 449 72 433 89 . 181 . . 786 783 1100 Average 355 | 1 114 30 . 104 113 411 353 436 201 219 237 . . . . 82 370 232 . . . . 399 361 89 609 870 422 126 423 50 136 260 . 421 851 1056 1311 Maximum Alert Level 5 | . 1 . . . 1 2 2 2 2 1 1 . . . . . 2 1 . . . . 4 2 1 4 4 2 3 2 . 2 3 . 4 4 5 4 Low Security (%) 43 | 100 78 100 . 100 90 6 14 . 68 30 30 . . . . 100 20 54 . . . . 36 1 89 32 . . 89 . 100 73 40 . 39 . . . Level 1 23 | . 21 . . . 9 29 46 50 23 69 69 . . . . . 12 45 . . . . 12 49 10 9 . 45 . 9 . 26 36 . 29 . . . Level 2 19 | . . . . . . 63 39 49 7 . . . . . . . 66 . . . . . 33 49 . 12 10 54 4 90 . . 22 . 6 36 14 . Level 3 7 | . . . . . . . . . . . . . . . . . . . . . . . 12 . . 28 68 . 5 . . . . . 8 43 39 . Level 4 6 | . . . . . . . . . . . . . . . . . . . . . . . 4 . . 18 21 . . . . . . . 15 20 35 100 Level 5 . | . . . . . . . . . . . . . . . . . . . . . . . . . . . . . . . . . . . . . 1 . High Security . | . . . . . . . . . . . . . . . . . . . . . . . . . . . . . . . . . . . . . 7 . Max Security . | . . . . . . . . . . . . . . . . . . . . . . . . . . . . . . . . . . . . . . . Squads Dispatched 137 | . 4 . . . 3 . 2 . 6 . 5 . . . . 4 . 1 . . . . 10 . 3 6 . . 2 . . 9 13 . 19 17 25 8 Investigation 15 | . 1 . . . 1 . 2 . 1 . 1 . . . . 2 . . . . . . 2 . . . . . 1 . . . . . . 1 1 2 Extermination 38 | . . . . . . . . . 5 . 3 . . . . 2 . 1 . . . . 2 . 1 . . . . . . 3 10 . 3 2 5 1 Reinforcement 30 | . 3 . . . 2 . . . . . 1 . . . . . . . . . . . 2 . 2 3 . . 1 . . 3 1 . 2 5 4 1 Assault 27 | . . . . . . . . . . . . . . . . . . . . . . . 3 . . 3 . . . . . 1 2 . 5 4 9 . Garrison 9 | . . . . . . . . . . . . . . . . . . . . . . . 1 . . . . . . . . 2 . . 3 . 2 1 Intercept 18 | . . . . . . . . . . . . . . . . . . . . . . . . . . . . . . . . . . . 6 5 4 3 Construction Impeded 10 | . . . . . . . . . . . . . . . . . . . . . . . 2 . 2 1 . . . . . 1 . . 1 1 2 . Haulers Reinforced 3 | . . . . . . . . . . . . . . . . . . . . . . . . . . . . . 1 . . . . . 1 1 . . Stealth | -11 -10 -10 -10 -9 -8 -8 -8 -8 -7 -7 -7 -7 -7 -7 -6 -6 -6 -6 -6 -6 -6 -5 -5 -5 -5 -5 -5 -5 -5 -4 -4 -4 -4 -4 -3 -3 -2 -1 --------- Run | Scr Mat Min Exi Min Mat Gar Mat Gar Fac Was Fac Low Low Zio Pro Fac Gar Fac Low Low Dat Pro Fac Was Fac Ext Cet Arc Hub Fac Was Fac Arm Lab Res Tes Res Acc Distress Signals 38 | . 1 . . . 6 . 1 . . . 3 . . . . . . . . . . . 5 . . 4 2 . 1 . . 1 3 . 1 . 8 2 Communications Jammed 206 | . . . . . . . . . . . . . . . . . . . . . . . 35 . . . . . . . . . 20 . 151 . . . Distress Signals 204 | . . . . . . . . . . . . . . . . . . . . . . . 35 . . . . . . . . . 20 . 149 . . . Times Spotted 802 | . 39 5 . 6 28 13 34 3 19 6 34 . 4 . 6 8 18 3 . 13 . 6 73 6 8 51 10 15 11 1 10 32 70 1 87 53 88 41 Peak Tracking Total 22 | . 4 3 . 3 5 6 5 2 3 3 5 . 4 . 4 2 3 2 . 6 . 3 6 4 2 11 5 2 5 1 4 7 7 1 8 7 17 22 Tactical Retreats 62 | . 2 1 . 1 1 1 4 . . . 1 . . . . . 4 . . 2 . . 10 . . 1 . . 1 . 4 1 11 . 4 1 6 6 Traps | -11 -10 -10 -10 -9 -8 -8 -8 -8 -7 -7 -7 -7 -7 -7 -6 -6 -6 -6 -6 -6 -6 -5 -5 -5 -5 -5 -5 -5 -5 -4 -4 -4 -4 -4 -3 -3 -2 -1 ------- Run | Scr Mat Min Exi Min Mat Gar Mat Gar Fac Was Fac Low Low Zio Pro Fac Gar Fac Low Low Dat Pro Fac Was Fac Ext Cet Arc Hub Fac Was Fac Arm Lab Res Tes Res Acc Traps Triggered 34 | . 3 . . . 4 4 1 4 4 . . . . . . 2 1 . . . . . 2 . . 2 . . 1 2 . 1 1 . . 1 1 . Indirectly 1 | . . . . . . . . . . . . . . . . . . . . . . . . . . . . . 1 . . . . . . . . . Trap Hack Attempts . | . . . . . . . . . . . . . . . . . . . . . . . . . . . . . . . . . . . . . . . Triggered . | . . . . . . . . . . . . . . . . . . . . . . . . . . . . . . . . . . . . . . . Disarmed . | . . . . . . . . . . . . . . . . . . . . . . . . . . . . . . . . . . . . . . . Reprogrammed . | . . . . . . . . . . . . . . . . . . . . . . . . . . . . . . . . . . . . . . . Reused . | . . . . . . . . . . . . . . . . . . . . . . . . . . . . . . . . . . . . . . . Traps Extracted . | . . . . . . . . . . . . . . . . . . . . . . . . . . . . . . . . . . . . . . . Installed . | . . . . . . . . . . . . . . . . . . . . . . . . . . . . . . . . . . . . . . . Triggered 3 | . . . . . . . . . . . 2 . . . . . . . . . . 1 . . . . . . . . . . . . . . . . Machines | -11 -10 -10 -10 -9 -8 -8 -8 -8 -7 -7 -7 -7 -7 -7 -6 -6 -6 -6 -6 -6 -6 -5 -5 -5 -5 -5 -5 -5 -5 -4 -4 -4 -4 -4 -3 -3 -2 -1 ---------- Run | Scr Mat Min Exi Min Mat Gar Mat Gar Fac Was Fac Low Low Zio Pro Fac Gar Fac Low Low Dat Pro Fac Was Fac Ext Cet Arc Hub Fac Was Fac Arm Lab Res Tes Res Acc Machines Disabled 107 | . 1 . . . 5 1 5 1 5 . . . . . . 1 2 1 . . . . 26 . 4 3 2 4 14 . . 7 4 3 4 8 4 2 Max in Single Turn 13 | . 1 . . . 3 1 1 1 2 . . . . . . 1 1 1 . . . . 13 . 1 1 . 1 12 . . 1 1 1 1 1 1 1 Garrison Access 12 | . . . . . . . . . 1 . . . . . . 1 . 1 . . . . 3 . 1 . . . . . . 2 . . 2 1 . . Garrison Relay 3 | . . . . . . 1 . . . . . . . . . . 2 . . . . . . . . . . . . . . . . . . . . . Network Hub 2 | . . . . . . . . . . . . . . . . . . . . . . . . . . . . . 2 . . . . . . . . . Energy Cycler 1 | . . . . . . . . . . . . . . . . . . . . . . . . . . . . . . . . . . . . . . 1 Machines Sabotaged . | . . . . . . . . . . . . . . . . . . . . . . . . . . . . . . . . . . . . . . . Garrisons Compromised . | . . . . . . . . . . . . . . . . . . . . . . . . . . . . . . . . . . . . . . . Overloaded Fab Kills . | . . . . . . . . . . . . . . . . . . . . . . . . . . . . . . . . . . . . . . . Fab Network Shutdowns 1 | . . . . . . . . . 1 . . . . . . . . . . . . . . . . . . . . . . . . . . . . . Hacking | -11 -10 -10 -10 -9 -8 -8 -8 -8 -7 -7 -7 -7 -7 -7 -6 -6 -6 -6 -6 -6 -6 -5 -5 -5 -5 -5 -5 -5 -5 -4 -4 -4 -4 -4 -3 -3 -2 -1 --------- Run | Scr Mat Min Exi Min Mat Gar Mat Gar Fac Was Fac Low Low Zio Pro Fac Gar Fac Low Low Dat Pro Fac Was Fac Ext Cet Arc Hub Fac Was Fac Arm Lab Res Tes Res Acc Machines Accessed 123 | . 5 . . . 5 . 9 . 5 . 4 . . . . 15 . 2 . . 4 . 12 . 9 3 1 . 6 . . 5 15 2 10 7 2 2 Terminals 68 | . 5 . . . 4 . 7 . 3 . 3 . . . . 7 . . . . . . 5 . 3 3 1 . 6 . . 1 9 . 5 4 . 2 Fabricators 13 | . . . . . . . . . 1 . . . . . . 1 . 1 . . . . 2 . 1 . . . . . . 1 3 . 1 1 1 . Repair Stations 8 | . . . . . . . . . . . . . . . . 1 . . . . . . . . 3 . . . . . . . 2 . 1 1 . . Recycling Units 8 | . . . . . . . . . . . 1 . . . . 4 . . . . . . 1 . . . . . . . . . 1 . 1 . . . Scanalyzers 4 | . . . . . . . 1 . . . . . . . . . . . . . . . 1 . 1 . . . . . . 1 . . . . . . Garrison Access 16 | . . . . . 1 . 1 . 1 . . . . . . 2 . 1 . . . . 3 . 1 . . . . . . 2 . . 2 1 1 . Total Hacks 438 | . 10 . . . 13 . 29 . 13 . 10 . . . . 32 . 3 . . 31 . 23 . 22 8 1 . 16 . . 13 85 20 43 54 6 6 Successful 244 | . 6 . . . 9 . 12 . 7 . 3 . . . . 17 . 1 . . 31 . 11 . 12 3 1 . 9 . . 6 38 20 35 21 2 . Failed 194 | . 4 . . . 4 . 17 . 6 . 7 . . . . 15 . 2 . . . . 12 . 10 5 . . 7 . . 7 47 . 8 33 4 6 Catastrophic 47 | . . . . . 1 . 2 . 2 . 2 . . . . 3 . . . . . . 2 . 2 1 . . 1 . . 4 9 . 4 9 2 3 Database Lockouts . | . . . . . . . . . . . . . . . . . . . . . . . . . . . . . . . . . . . . . . . Manual 134 | . 2 . . . 6 . 16 . 3 . 6 . . . . 9 . . . . . . 7 . 6 1 1 . 6 . . 2 36 1 19 13 . . Terminals 261 | . 10 . . . 12 . 26 . 8 . 8 . . . . 16 . . . . . . 11 . 7 8 1 . 16 . . 6 56 . 29 41 . 6 Fabricators 55 | . . . . . . . . . 4 . . . . . . 5 . 2 . . . . 5 . 5 . . . . . . 3 15 . 6 6 4 . Repair Stations 24 | . . . . . . . . . . . . . . . . 2 . . . . . . . . 3 . . . . . . . 12 . 2 5 . . Recycling Units 17 | . . . . . . . . . . . 2 . . . . 7 . . . . . . 2 . . . . . . . . . 2 . 4 . . . Scanalyzers 12 | . . . . . . . 2 . . . . . . . . . . . . . . . 2 . 6 . . . . . . 2 . . . . . . Garrison Access 18 | . . . . . 1 . 1 . 1 . . . . . . 2 . 1 . . . . 3 . 1 . . . . . . 2 . . 2 2 2 . Terminal Hacks 142 | . 6 . . . 6 . 6 . 3 . 1 . . . . 4 . . . . 31 . 2 . 3 3 1 . 7 . . . 18 20 19 12 . . Record 36 | . . . . . . . . . . . . . . . . . . . . . 11 . . . 2 1 . . 1 . . . . 20 . 1 . . Part Schematic 21 | . . . . . 1 . 1 . 2 . . . . . . 2 . . . . 8 . . . . . . . . . . . 4 . 3 . . . Robot Schematic 10 | . . . . . . . . . . . . . . . . . . . . . 9 . . . . . . . . . . . . . 1 . . . Robot Analysis 3 | . . . . . 1 . 2 . . . . . . . . . . . . . . . . . . . . . . . . . . . . . . . Prototype ID Bank 5 | . . . . . . . 1 . . . . . . . . . . . . . 3 . . . . . . . . . . . . . . 1 . . Open Door 2 | . . . . . . . . . . . . . . . . . . . . . . . . . . . 1 . . . . . 1 . . . . . Level Access Points 1 | . . . . . . . . . . . . . . . . . . . . . . . . . . . . . . . . . . . . 1 . . Branch Access Points 5 | . 1 . . . . . . . . . . . . . . 1 . . . . . . . . 1 1 . . . . . . . . 1 . . . Emergency Access Points 1 | . . . . . . . . . . . . . . . . . . . . . . . . . . . . . . . . . . . 1 . . . Terminal Index 3 | . . . . . . . . . . . . . . . . . . . . . . . . . . . . . . . . . 1 . 1 1 . . Fabricator Index 4 | . . . . . . . . . 1 . . . . . . . . . . . . . 1 . . . . . . . . . 1 . 1 . . . Recycling Unit Index 1 | . . . . . . . . . . . 1 . . . . . . . . . . . . . . . . . . . . . . . . . . . Garrison Index 1 | . . . . . . . . . . . . . . . . . . . . . . . . . . . . . 1 . . . . . . . . . Alert Level 5 | . . . . . . . . . . . . . . . . . . . . . . . . . . . . . . . . . . . 2 3 . . Unreport Threat 14 | . 1 . . . 2 . . . . . . . . . . . . . . . . . . . . 1 . . 2 . . . 4 . 2 2 . . Locate Traps 4 | . . . . . . . . . . . . . . . . . . . . . . . 1 . . . . . . . . . 2 . . 1 . . Surveillance Status 1 | . . . . . . . . . . . . . . . . . . . . . . . . . . . . . . . . . . . 1 . . . Hauler Manifests 2 | . 1 . . . . . . . . . . . . . . . . . . . . . . . . . . . . . . . . . 1 . . . Registered Components 7 | . 1 . . . 1 . . . . . . . . . . 1 . . . . . . . . . . . . 1 . . . 1 . 1 1 . . Zone Layout 16 | . 2 . . . 1 . 2 . . . . . . . . . . . . . . . . . . . . . 2 . . . 4 . 4 1 . . Fabricator Hacks 30 | . . . . . . . . . 2 . . . . . . 4 . . . . . . 3 . 2 . . . . . . 1 9 . 4 3 2 . Network Status 2 | . . . . . . . . . . . . . . . . . . . . . . . . . . . . . . . . . 1 . . 1 . . Load Schematic 15 | . . . . . . . . . 1 . . . . . . 2 . . . . . . 2 . 1 . . . . . . 1 4 . 2 1 1 . Build 13 | . . . . . . . . . 1 . . . . . . 2 . . . . . . 1 . 1 . . . . . . . 4 . 2 1 1 . Repair Station Hacks 10 | . . . . . . . . . . . . . . . . 2 . . . . . . . . . . . . . . . . 5 . 2 1 . . Scan Component 6 | . . . . . . . . . . . . . . . . 1 . . . . . . . . . . . . . . . . 3 . 1 1 . . Repair 4 | . . . . . . . . . . . . . . . . 1 . . . . . . . . . . . . . . . . 2 . 1 . . . Recycling Unit Hacks 9 | . . . . . . . . . . . 1 . . . . 3 . . . . . . 2 . . . . . . . . . 1 . 2 . . . Report Inventory 5 | . . . . . . . . . . . . . . . . 2 . . . . . . 1 . . . . . . . . . 1 . 1 . . . Retrieve Matter 2 | . . . . . . . . . . . 1 . . . . . . . . . . . 1 . . . . . . . . . . . . . . . Retrieve Components 2 | . . . . . . . . . . . . . . . . 1 . . . . . . . . . . . . . . . . . . 1 . . . Scanalyzer 7 | . . . . . . . 2 . . . . . . . . . . . . . . . 1 . 2 . . . . . . 2 . . . . . . Insert Component 4 | . . . . . . . 1 . . . . . . . . . . . . . . . 1 . 1 . . . . . . 1 . . . . . . Analyze 3 | . . . . . . . 1 . . . . . . . . . . . . . . . . . 1 . . . . . . 1 . . . . . . Garrison Access Hacks 15 | . . . . . 1 . 1 . 1 . . . . . . 2 . 1 . . . . 3 . 1 . . . . . . 2 . . 2 1 . . Unlock Access 3 | . . . . . 1 . 1 . . . . . . . . 1 . . . . . . . . . . . . . . . . . . . . . . Seal Access 12 | . . . . . . . . . 1 . . . . . . 1 . 1 . . . . 3 . 1 . . . . . . 2 . . 2 1 . . Unauthorized Hacks 31 | . . . . . 2 . 3 . 1 . 1 . . . . 2 . . . . . . . . 4 . . . 2 . . 1 5 . 6 4 . . Terminals 18 | . . . . . 2 . 3 . . . 1 . . . . . . . . . . . . . 1 . . . 2 . . . 3 . 3 3 . . Track 3 | . . . . . . . . . . . . . . . . . . . . . . . . . . . . . . . . . 2 . . 1 . . Botnet 13 | . . . . . 2 . 2 . . . 1 . . . . . . . . . . . . . 1 . . . 2 . . . 1 . 2 2 . . Operators 2 | . . . . . . . 1 . . . . . . . . . . . . . . . . . . . . . . . . . . . 1 . . . Fabricators 9 | . . . . . . . . . 1 . . . . . . . . . . . . . . . 2 . . . . . . 1 2 . 2 1 . . Prioritize 2 | . . . . . . . . . . . . . . . . . . . . . . . . . 1 . . . . . . . . . 1 . . . Siphon 7 | . . . . . . . . . 1 . . . . . . . . . . . . . . . 1 . . . . . . 1 2 . 1 1 . . Repair Stations 1 | . . . . . . . . . . . . . . . . . . . . . . . . . 1 . . . . . . . . . . . . . Mechanics 1 | . . . . . . . . . . . . . . . . . . . . . . . . . 1 . . . . . . . . . . . . . Recycling Units 3 | . . . . . . . . . . . . . . . . 2 . . . . . . . . . . . . . . . . . . 1 . . . Mask 1 | . . . . . . . . . . . . . . . . . . . . . . . . . . . . . . . . . . . 1 . . . Tunnel 2 | . . . . . . . . . . . . . . . . 2 . . . . . . . . . . . . . . . . . . . . . . Scanalyzers . | . . . . . . . . . . . . . . . . . . . . . . . . . . . . . . . . . . . . . . . Garrison Access . | . . . . . . . . . . . . . . . . . . . . . . . . . . . . . . . . . . . . . . . Data Cores Recovered 1 | . . . . . . . . . . . . . . . . . . . . . . . . . . 1 . . . . . . . . . . . . Used . | . . . . . . . . . . . . . . . . . . . . . . . . . . . . . . . . . . . . . . . Hacking Detections 86 | . 3 . . . 4 . 8 . 4 . 4 . . . . 10 . 1 . . . . 9 . 7 3 . . 5 . . 2 10 . 6 6 2 2 Full Trace Events 8 | . 1 . . . 1 . 1 . 1 . . . . . . . . . . . . . 2 . . . . . . . . . . . . . . 2 Feedback Events . | . . . . . . . . . . . . . . . . . . . . . . . . . . . . . . . . . . . . . . . Feedback Blocked . | . . . . . . . . . . . . . . . . . . . . . . . . . . . . . . . . . . . . . . . Robot Schematics Acquired 10 | . . . . . . . . . . . . . . . . . . . . . 9 . . . . . . . . . . . . . 1 . . . Robots Built . | . . . . . . . . . . . . . . . . . . . . . . . . . . . . . . . . . . . . . . . Matter . | . . . . . . . . . . . . . . . . . . . . . . . . . . . . . . . . . . . . . . . Time . | . . . . . . . . . . . . . . . . . . . . . . . . . . . . . . . . . . . . . . . Total Robot Build Rating . | . . . . . . . . . . . . . . . . . . . . . . . . . . . . . . . . . . . . . . . Part Schematics Acquired 23 | . . . . . 1 . 1 . 2 . . . . . . 2 . . . . 8 . . . 1 . . . . . . 1 4 . 3 . . . Parts Built 14 | . . . . . . . . . 1 . . . . . . 3 . . . . . . 1 . 1 . . . . . . . 3 . 2 2 1 . Matter 2717 | . . . . . . . . . 159 . . . . . . 314 . . . . . . 285 . 159 . . . . . . . 881 . 426 208 285 . Time 1069 | . . . . . . . . . 106 . . . . . . 157 . . . . . . 152 . 53 . . . . . . . 330 . 152 69 50 . Total Part Build Rating 82 | . . . . . . . . . 6 . . . . . . 10 . . . . . . 5 . 6 . . . . . . . 22 . 10 18 5 . Parts Repaired 4 | . . . . . . . . . . . . . . . . 1 . . . . . . . . . . . . . . . . 2 . 1 . . . Time 260 | . . . . . . . . . . . . . . . . 44 . . . . . . . . . . . . . . . . 108 . 108 . . . Parts Recycled . | . . . . . . . . . . . . . . . . . . . . . . . . . . . . . . . . . . . . . . . Recycled Matter . | . . . . . . . . . . . . . . . . . . . . . . . . . . . . . . . . . . . . . . . Retrieved Matter . | . . . . . . . . . . . . . . . . . . . . . . . . . . . . . . . . . . . . . . . Retrieved Components 18 | . . . . . . . . . . . . . . . . 8 . . . . . . . . . . . . . . . . . . 10 . . . Parts Scanalyzed 3 | . . . . . . . 1 . . . . . . . . . . . . . . . . . 1 . . . . . . 1 . . . . . . Part Schematics Acquired 2 | . . . . . . . . . . . . . . . . . . . . . . . . . 1 . . . . . . 1 . . . . . . Parts Damaged . | . . . . . . . . . . . . . . . . . . . . . . . . . . . . . . . . . . . . . . . Bothacking | -11 -10 -10 -10 -9 -8 -8 -8 -8 -7 -7 -7 -7 -7 -7 -6 -6 -6 -6 -6 -6 -6 -5 -5 -5 -5 -5 -5 -5 -5 -4 -4 -4 -4 -4 -3 -3 -2 -1 ------------ Run | Scr Mat Min Exi Min Mat Gar Mat Gar Fac Was Fac Low Low Zio Pro Fac Gar Fac Low Low Dat Pro Fac Was Fac Ext Cet Arc Hub Fac Was Fac Arm Lab Res Tes Res Acc Used RIF Installer 3 | . . . . . . 1 . 1 . . . . . . . . 1 . . . . . . . . . . . . . . . . . . . . . Robot Detection 1 | . . . . . . . . 1 . . . . . . . . . . . . . . . . . . . . . . . . . . . . . . Program Shield 1 | . . . . . . . . . . . . . . . . . 1 . . . . . . . . . . . . . . . . . . . . . Robots Hacked 23 | . . . . . . . . . 2 3 . . . . . . . . 1 . . . 2 6 . 2 . . . 2 3 1 1 . . . . . Non-combat 8 | . . . . . . . . . 2 . . . . . . . . . . . . . 2 . . . . . . 2 . 1 1 . . . . . Combat 15 | . . . . . . . . . . 3 . . . . . . . . 1 . . . . 6 . 2 . . . . 3 . . . . . . . Robot Hacks Applied 25 | . . . . . . . . . 2 3 . . . . . . . . 1 . . . 2 6 . 2 . . . 2 4 1 2 . . . . . parse_system 3 | . . . . . . . . . . . . . . . . . . . 1 . . . . . . 2 . . . . . . . . . . . . no_distress 1 | . . . . . . . . . . . . . . . . . . . . . . . . . . . . . . . . 1 . . . . . . find_chute 4 | . . . . . . . . . 1 . . . . . . . . . . . . . 2 . . . . . . 1 . . . . . . . . ignore_repairs 1 | . . . . . . . . . 1 . . . . . . . . . . . . . . . . . . . . . . . . . . . . . find_station 1 | . . . . . . . . . . . . . . . . . . . . . . . . . . . . . . 1 . . . . . . . . purge_threat 1 | . . . . . . . . . . . . . . . . . . . . . . . . . . . . . . . . . 1 . . . . . block_reporting 1 | . . . . . . . . . . . . . . . . . . . . . . . . . . . . . . . . . 1 . . . . . ignore_targets 12 | . . . . . . . . . . 3 . . . . . . . . . . . . . 6 . . . . . . 3 . . . . . . . overload_power 1 | . . . . . . . . . . . . . . . . . . . . . . . . . . . . . . . 1 . . . . . . . Relay Couplers Released 21 | . . . . . . 3 . . . . . . . . . 3 10 . . . . . 3 . . . . . . . . . . . 2 . . . Machine Destruction 15 | . . . . . . 3 . . . . . . . . . . 10 . . . . . . . . . . . . . . . . . 2 . . . Programmers 6 | . . . . . . . . . . . . . . . . 3 . . . . . . 3 . . . . . . . . . . . . . . . Attached 5 | . . . . . . . . . . 1 . . . . . 1 . . . . . . 1 1 . . . . . . 1 . . . . . . . Robots Rewired 25 | . . . . . . . . . . . . . . . . . 1 . . 2 . . . . . 13 . . . . . . 9 . . . . . Allies Hacked 5 | . . . . . . . . . . . . . . . . . . . . . . . . . . . . . . . . 2 3 . . . . . Hacks Repelled . | . . . . . . . . . . . . . . . . . . . . . . . . . . . . . . . . . . . . . . . Allies | -11 -10 -10 -10 -9 -8 -8 -8 -8 -7 -7 -7 -7 -7 -7 -6 -6 -6 -6 -6 -6 -6 -5 -5 -5 -5 -5 -5 -5 -5 -4 -4 -4 -4 -4 -3 -3 -2 -1 -------- Run | Scr Mat Min Exi Min Mat Gar Mat Gar Fac Was Fac Low Low Zio Pro Fac Gar Fac Low Low Dat Pro Fac Was Fac Ext Cet Arc Hub Fac Was Fac Arm Lab Res Tes Res Acc Total Allies 74 | . . . . . . . . . . . . . . . . . 1 . . 2 . 1 . . . 19 5 . . . 18 . 9 . . . 12 7 Largest Group 18 | . . . . . . . . . . . . . . . . . 1 . . 2 2 3 3 . . 13 14 12 7 . 18 14 3 . . . 6 5 Highest-Rated Group 771 | . . . . . . . . . . . . . . . . . 12 . . 51 51 145 145 . . 494 771 771 515 . 650 471 144 . . . 89 63 Highest-Rated Ally 156 | . . . . . . . . . . . . . . . . . 12 . . 31 31 94 94 . . 156 156 156 94 . 50 46 48 . . . 15 15 Total Orders 10 | . . . . . . . . . . . . . . . . . . . . . . . . . . . . . 6 4 . . . . . . . . STAY 3 | . . . . . . . . . . . . . . . . . . . . . . . . . . . . . 3 . . . . . . . . . ROAM 2 | . . . . . . . . . . . . . . . . . . . . . . . . . . . . . . 2 . . . . . . . . FOLLOW 3 | . . . . . . . . . . . . . . . . . . . . . . . . . . . . . 3 . . . . . . . . . RETURN 2 | . . . . . . . . . . . . . . . . . . . . . . . . . . . . . . 2 . . . . . . . . Ally Attacks 441 | . . . . . . . . . . . . . . . . . 3 . . . . 26 21 . . 103 87 28 26 . 5 86 17 . . . 28 11 Total Damage 13084 | . . . . . . . . . . . . . . . . . 14 . . . . 767 555 . . 2621 2534 970 723 . 168 3115 579 . . . 603 435 Kills 71 | . . . . . . . . . . . . . . . . . . . . . . 3 3 . . 24 12 3 4 . 1 12 1 . . . 4 4 Allies Corrupted 10 | . . . . . . . . . . . . . . . . . . . . . . . 2 . . 1 . . 4 . . 1 2 . . . . . Allies Melted . | . . . . . . . . . . . . . . . . . . . . . . . . . . . . . . . . . . . . . . . Intel | -11 -10 -10 -10 -9 -8 -8 -8 -8 -7 -7 -7 -7 -7 -7 -6 -6 -6 -6 -6 -6 -6 -5 -5 -5 -5 -5 -5 -5 -5 -4 -4 -4 -4 -4 -3 -3 -2 -1 ------- Run | Scr Mat Min Exi Min Mat Gar Mat Gar Fac Was Fac Low Low Zio Pro Fac Gar Fac Low Low Dat Pro Fac Was Fac Ext Cet Arc Hub Fac Was Fac Arm Lab Res Tes Res Acc Robot Analysis Total 3 | . . . . . 1 . 2 . . . . . . . . . . . . . . . . . . . . . . . . . . . . . . . Derelict Logs Recovered 7 | . . . . . . . . . . . . 1 1 . 1 . . . 1 1 . 2 . . . . . . . . . . . . . . . . Drone Launches 2 | . . . . . . . . . . . . . . . . . . . . . . . . . . . . . . 2 . . . . . . . . Drone Recoveries 2 | . . . . . . . . . . . . . . . . . . . . . . . . . . . . . . 2 . . . . . . . . Exploration | -11 -10 -10 -10 -9 -8 -8 -8 -8 -7 -7 -7 -7 -7 -7 -6 -6 -6 -6 -6 -6 -6 -5 -5 -5 -5 -5 -5 -5 -5 -4 -4 -4 -4 -4 -3 -3 -2 -1 ------------- Run | Scr Mat Min Exi Min Mat Gar Mat Gar Fac Was Fac Low Low Zio Pro Fac Gar Fac Low Low Dat Pro Fac Was Fac Ext Cet Arc Hub Fac Was Fac Arm Lab Res Tes Res Acc Turns Passed 46957 | 67 1358 536 240 336 1766 1089 2308 225 2045 198 1576 347 441 285 731 1228 984 874 1104 1108 155 727 2952 812 1499 1299 360 1476 597 441 1000 2280 3519 4085 2752 1836 1995 326 Spaces Moved 19312 | 46 782 389 207 166 684 378 825 112 966 88 654 250 304 219 417 622 477 554 574 605 87 318 1282 305 646 499 181 188 270 158 495 997 1278 370 900 726 905 388 Core 509 | 1 . . . . . . . . . . . . . . . . . . . . . . . . . . . . . . . . . . . . 120 388 Treads 11537 | . . . . . . . 667 112 435 88 387 . . . . 22 134 . . 207 87 318 1282 305 646 499 181 188 270 158 495 997 1278 370 900 726 785 . Legs 701 | . 305 . . . 183 55 158 . . . . . . . . . . . . . . . . . . . . . . . . . . . . . . . Wheels 6565 | 45 477 389 207 166 501 323 . . 531 . 267 250 304 219 417 600 343 554 574 398 . . . . . . . . . . . . . . . . . . Hover . | . . . . . . . . . . . . . . . . . . . . . . . . . . . . . . . . . . . . . . . Flight . | . . . . . . . . . . . . . . . . . . . . . . . . . . . . . . . . . . . . . . . Fastest Speed 50 | 50 100 110 110 120 103 140 153 186 150 182 130 130 120 130 120 130 125 140 140 140 180 180 160 160 172 152 152 160 180 160 160 160 160 170 160 160 50 50 Average Speed 157 | 98 123 110 112 120 141 145 184 186 167 182 168 130 129 130 129 143 165 140 140 154 180 186 172 180 172 171 170 169 180 169 160 177 166 199 182 165 136 75 Slowest Speed 280 | 100 180 110 120 120 270 153 205 186 240 185 260 130 130 130 130 280 240 140 140 240 180 200 220 200 172 172 200 180 180 180 180 180 200 200 195 190 190 150 Overloaded Moves . | . . . . . . . . . . . . . . . . . . . . . . . . . . . . . . . . . . . . . . . Propulsion Burnouts . | . . . . . . . . . . . . . . . . . . . . . . . . . . . . . . . . . . . . . . . Robots Hopped 3 | . . . . . . . . . . . . . . . . . . . . . . . . . . . . 3 . . . . . . . . . . Cave-ins Triggered 1 | . . . . . . . . . . . . . . . . . . . . . . . 1 . . . . . . . . . . . . . . . Teleports 1 | . . . . . . . . . . . . . . . . . . . . . . . . . . . . . . . . . . . 1 . . . Exploration Rate (%) 49 | 3 81 64 55 34 62 65 73 37 24 79 17 48 48 14 58 20 47 10 67 65 69 52 35 86 18 68 70 89 31 6 96 31 63 99 24 63 31 16 Regions Visited 38 Branch Regions 18 Pre-discovered Areas 4 | . . 1 . . . . . . . . . . . . . 2 . . . . 1 . . . . . . . . . . . . . . . . . Known Exits Taken 25 | . 1 . . . 1 . 1 . . . 1 1 1 1 1 1 . 1 1 1 1 1 . . 1 1 1 1 1 . . 1 1 1 1 1 1 . Unknown Exits Taken 4 | 1 . 1 1 1 . . . . . . . . . . . . . . . . . . . . . . . . . . . . . . . . . . Scrap Searched 7 | . . . . 1 . . . . . . . . 1 . 1 . . . 2 2 . . . . . . . . . . . . . . . . . . Spaces Dug 270 | . . . . . . . 1 . 12 . . . . . 10 16 . 1 3 18 . 8 23 . 41 23 . . 3 3 . 38 9 4 23 13 21 . Terrain Destroyed 2215 | . . . . 111 70 48 10 4 16 35 5 . 38 . 39 16 90 6 24 139 . 17 199 6 47 168 1 17 312 4 10 92 38 6 170 236 191 50 Melee 31 | . . . . . . . 1 . 11 . . . . . . 16 . 1 1 . . . . . . . . . . . . 1 . . . . . . Projectile 493 | . . . . . 1 2 7 . 2 . . . . . 13 . 1 5 8 23 . 9 58 6 47 37 1 17 11 4 10 70 19 6 47 29 60 . AOE 1691 | . . . . 111 69 46 2 4 3 35 5 . 38 . 26 . 89 . 15 116 . 8 141 . . 131 . . 301 . . 21 19 . 123 207 131 50 Terrain Rammed . | . . . . . . . . . . . . . . . . . . . . . . . . . . . . . . . . . . . . . . . Walls Destroyed . | . . . . . . . . . . . . . . . . . . . . . . . . . . . . . . . . . . . . . . . Machines Disabled . | . . . . . . . . . . . . . . . . . . . . . . . . . . . . . . . . . . . . . . . Actions | -11 -10 -10 -10 -9 -8 -8 -8 -8 -7 -7 -7 -7 -7 -7 -6 -6 -6 -6 -6 -6 -6 -5 -5 -5 -5 -5 -5 -5 -5 -4 -4 -4 -4 -4 -3 -3 -2 -1 --------- Run | Scr Mat Min Exi Min Mat Gar Mat Gar Fac Was Fac Low Low Zio Pro Fac Gar Fac Low Low Dat Pro Fac Was Fac Ext Cet Arc Hub Fac Was Fac Arm Lab Res Tes Res Acc Total 32639 | 60 964 463 214 273 1340 877 1441 123 1263 112 953 256 332 219 559 875 575 629 854 710 86 407 1724 478 979 829 229 1321 360 329 611 1403 2415 3665 1586 1207 1499 419 Wait 9372 | . 30 49 . 90 497 426 464 . 155 1 162 . 15 . 90 157 7 26 249 1 . 49 145 74 228 133 9 1106 54 143 27 232 703 3207 366 222 255 . Move 19274 | 45 781 388 206 165 683 377 825 111 966 87 653 249 303 218 416 622 476 553 573 604 86 317 1281 304 645 498 180 182 270 158 494 996 1277 369 899 725 904 388 Hop 2 | . . . . . . . . . . . . . . . . . . . . . . . . . . . . 2 . . . . . . . . . . Pick Up 340 | 6 17 2 2 1 34 5 16 . 13 . 7 . . 1 2 14 6 5 3 6 . 3 27 10 8 5 11 1 2 2 2 7 32 7 25 28 30 . Fast Attach 371 | 7 7 1 1 . 23 2 17 . 11 1 12 . . . 4 11 3 10 2 5 . 3 26 11 12 13 4 7 5 7 5 27 41 19 18 18 34 4 Attach 210 | . 6 4 . . 15 4 2 . 7 3 5 . 1 . 1 5 4 1 1 8 . 3 20 2 4 4 . . 1 3 1 7 17 2 27 21 27 4 Detach 37 | . . . . . . . . . 2 3 1 . . . 1 2 1 . . 1 . . 2 . . 3 . . . 1 . . 3 1 3 4 6 3 Swap 233 | . 5 1 2 3 6 3 6 1 20 6 15 . 4 . 5 15 9 10 1 4 . 7 15 3 6 12 4 . 2 1 1 13 16 5 7 17 8 . Drop 474 | . 12 . 3 . 19 4 32 . 19 1 10 . 1 . 5 11 7 14 5 6 . 1 39 10 20 19 14 8 7 7 6 32 62 19 18 22 39 2 Fire 2036 | 2 103 18 . 14 63 24 78 3 52 10 80 7 8 . 35 15 51 8 16 54 . 24 167 64 54 93 7 15 17 7 75 88 191 36 223 149 180 5 Melee 48 | . 3 . . . . . 1 . 14 . . . . . . 23 . 2 4 . . . . . . . . . . . . 1 . . . . . . Ram 16 | . . . . . . . . . . . . . . . . . . . . . . . . . . . . . . . . . . . . 1 2 13 Kick . | . . . . . . . . . . . . . . . . . . . . . . . . . . . . . . . . . . . . . . . Crush 27 | . . . . . . . . . . . 8 . . . . . . . . . . . 1 . 2 . . . 2 . . . . . . . 14 . Escape Stasis 58 | . . . . . . 32 . 8 4 . . . . . . . 8 . . . . . 1 . . 5 . . . . . . . . . . . . Rewire 141 | . . . . . . . . . . . . . . . . . 3 . . 21 . . . . . 44 . . . . . . 73 . . . . . Trap . | . . . . . . . . . . . . . . . . . . . . . . . . . . . . . . . . . . . . . . . Miscellaneous . | . . . . . . . . . . . . . . . . . . . . . . . . . . . . . . . . . . . . . . . Route ------- -11/Scrapyard -10/Materials (discovered 2 exits: [*Mat] / *Min) -10/Mines (discovered 2 exits: [*Mat] / [*Exi]) -10/Exiles -9/Mines -8/Materials (discovered 3 exits: *Fac x2 / Gar) -8/Garrison (discovered 3 exits: *Mat x3) -8/Materials (discovered 4 exits: *Fac x3 / Gar) -8/Garrison -7/Factory (discovered 3 exits: *Fac x2 / *Low) -7/Waste -7/Factory -7/Lower Caves -7/Lower Caves -7/Zion -6/Proximity Caves -6/Factory (discovered 3 exits: *Low x2 / Gar) -6/Garrison -6/Factory -6/Lower Caves -6/Lower Caves -6/Data Miner -5/Proximity Caves -5/Factory -5/Waste -5/Factory (discovered 4 exits: *Upp x2 / *Ext x2) -5/Extension (discovered 2 exits: *Fac / *Cet) -5/Cetus (discovered 2 exits: *Fac / *Arc) -5/Archives (discovered 3 exits: *Fac / *Hub x2) -5/Hub_04(d) -4/Factory -4/Waste -4/Factory (discovered 3 exits: *Res / *Upp / *Arm) -4/Armory -4/Lab -3/Research (discovered 2 exits: *Tes x2) -3/Testing -2/Research -1/Access History --------- Turn | Location | Event 20 | -11/Scrapyard | Discovered new exit (range 16) 68 | -11/Scrapyard | Entered Materials 315 | -10/Materials | Build established: Mutant 456 | -10/Materials | Core integrity fell below 50% 846 | -10/Materials | Discovered new exit (range 15) 1143 | -10/Materials | Identified exit to Mines 1426 | -10/Materials | Entered Mines 1427 | -10/Mines | Assembled infested the area 1474 | -10/Mines | Discovered new exit (range 10) 1614 | -10/Mines | Core integrity fell below 20% 1657 | -10/Mines | Lost 5 parts (1p3n1w) 1935 | -10/Mines | Learned location of Storage (-9) 1958 | -10/Mines | Discovered new exit (range 5) 1962 | -10/Mines | Entered Exiles 1991 | -10/Exiles | Met 8R-AWN 2009 | -10/Exiles | Met EX-HEX 2072 | -10/Exiles | Met EX-DEC 2185 | -10/Exiles | Discovered new exit (range 14) 2202 | -10/Exiles | Entered Mines 2209 | -9/Mines | Received a Rocket Launcher from a helpful Derelict 2445 | -9/Mines | Build established: Hauler-Mutant 2522 | -9/Mines | Discovered new exit (range 13) 2538 | -9/Mines | Entered Materials 2538 | -8/Materials | Evolved 4 slots: Propulsion x1, Utility x2, Weapon x1 2803 | -8/Materials | Lost 5 parts (1p2n1u1w) 2872 | -8/Materials | Lost 4 parts (1n3w) 3392 | -8/Materials | Discovered new exit (range 9) 3728 | -8/Materials | Build established: Hauler-Gunner 3856 | -8/Materials | Discovered new exit (range 4) 3962 | -8/Materials | Identified exit to Garrison 4125 | -8/Materials | Build established: Hauler-Tank 4304 | -8/Materials | Entered Garrison 4413 | -8/Garrison | Destroyed 7 combat bots 4416 | -8/Garrison | Triggered checkpoint 4416 | -8/Garrison | Lost 3 parts (1u2w) 4418 | -8/Garrison | Triggered checkpoint 4501 | -8/Garrison | Discovered new exit (range 11) 4620 | -8/Garrison | Discovered new exit (range 10) 4683 | -8/Garrison | Triggered checkpoint 4704 | -8/Garrison | Build established: Scavenger-Mutant 4790 | -8/Garrison | Discovered new exit (range 10) 4815 | -8/Garrison | Installed Relay Interface Framework 4864 | -8/Garrison | Triggered checkpoint 4874 | -8/Garrison | Core integrity fell below 50% 4903 | -8/Garrison | Garrison Relay disabled 5393 | -8/Garrison | Entered Materials 6204 | -8/Materials | Discovered new exit (range 15) 6302 | -8/Materials | Build established: Hauler-Tank 6671 | -8/Materials | Discovered new exit (range 12) 7531 | -8/Materials | Discovered new exit (range 15) 7626 | -8/Materials | Core integrity fell below 20% 7701 | -8/Materials | Identified exit to Garrison 7701 | -8/Materials | Entered Garrison 7711 | -8/Garrison | Expanded RIF knowledge: Robot Detection 7815 | -8/Garrison | Triggered checkpoint 7906 | -8/Garrison | Discovered new exit (range 10) 7926 | -8/Garrison | Entered Factory 7926 | -7/Factory | Evolved 2 slots: Propulsion x1, Utility x1 8103 | -7/Factory | Build established: Hauler-Mutant 8563 | -7/Factory | Discovered new exit (range 15) 8584 | -7/Factory | Identified exit to Lower Caves 9365 | -7/Factory | Discovered new exit (range 9) 9567 | -7/Factory | Discovered new exit (range 20) 9600 | -7/Factory | Identified exit to Factory 9810 | -7/Factory | Local fabrication network quarantined 9829 | -7/Factory | Fabricated Smartbomb Launcher? 9971 | -7/Factory | Sucked down chute 9971 | -7/Factory | Entered Waste 9985 | -7/Waste | Spotted C-40 Crusher 9986 | -7/Waste | EMP discharged 9986 | -7/Waste | System corruption reached 10% 10000 | -7/Waste | Crushed by Compactor (1 part destroyed, 1 dropped) 10041 | -7/Waste | Spotted C-40 Crusher 10052 | -7/Waste | Spotted C-40 Crusher 10054 | -7/Waste | Spotted C-40 Crusher 10062 | -7/Waste | Destroyed C-40 Crusher 10086 | -7/Waste | EMP discharged 10093 | -7/Waste | Spotted C-40 Crusher 10133 | -7/Waste | Spotted C-40 Crusher 10142 | -7/Waste | Discovered new exit (range 16) 10144 | -7/Waste | Crushed by Compactor (0 parts destroyed, 1 dropped) 10167 | -7/Waste | Identified exit to Factory 10169 | -7/Waste | Entered Factory 10173 | -7/Factory | Build established: Scavenger-Mutant 10991 | -7/Factory | System corruption reached 30% 11389 | -7/Factory | Discovered exit to Lower Caves (range 16) 11745 | -7/Factory | Entered Lower Caves 11880 | -7/Lower Caves | Build established: Scavenger-Skirmisher 11924 | -7/Lower Caves | Learned Factory interactive machine intel 12018 | -7/Lower Caves | Encountered a Warlord checkpoint 12072 | -7/Lower Caves | Discovered new exit (range 15) 12091 | -7/Lower Caves | Identified exit to Lower Caves 12092 | -7/Lower Caves | Entered another Lower Caves area 12111 | -7/Lower Caves | Core integrity fell below 50% 12236 | -7/Lower Caves | Learned Factory security intel 12526 | -7/Lower Caves | Discovered new exit (range 3) 12531 | -7/Lower Caves | Identified exit to Zion 12533 | -7/Lower Caves | Entered Zion 12626 | -7/Zion | Found Prototype Device 12797 | -7/Zion | Discovered new exit (range 16) 12815 | -7/Zion | Identified exit to Proximity Caves 12818 | -7/Zion | Entered Proximity Caves 13530 | -6/Proximity Caves | Discovered exit to Factory (range 9) 13549 | -6/Proximity Caves | Entered Factory 13549 | -6/Factory | Evolved 2 slots: Utility x2 13550 | -6/Factory | Identified exit to Lower Caves 13552 | -6/Factory | Loaded intel: 46 interactive machine locations 13642 | -6/Factory | Repaired Arm. Huge Wheel 13692 | -6/Factory | Identified Mobile Refinery Mk. CCLXVII 13737 | -6/Factory | Discovered exit to Lower Caves (range 15) 14678 | -6/Factory | Fabricated Lrn. Sensor Array (x1) 14754 | -6/Factory | Fabricated Adv. Signal Interpreter (x2) 14777 | -6/Factory | Build established: Hauler-Mutant 14777 | -6/Factory | Identified exit to Garrison 14777 | -6/Factory | Entered Garrison 14784 | -6/Garrison | Expanded RIF knowledge: Program Shield 14908 | -6/Garrison | Triggered checkpoint 14979 | -6/Garrison | Garrison Relay disabled 14998 | -6/Garrison | Triggered checkpoint 15074 | -6/Garrison | Triggered checkpoint 15365 | -6/Garrison | Build established: Hauler-Tank 15398 | -6/Garrison | Triggered checkpoint 15438 | -6/Garrison | Garrison Relay disabled 15743 | -6/Garrison | Discovered new exit (range 14) 15760 | -6/Garrison | Identified exit to Factory 15761 | -6/Garrison | Entered Factory 15927 | -6/Factory | Discovered exit to Lower Caves (range 4) 16591 | -6/Factory | Build established: Bothacker-Mutant 16635 | -6/Factory | Entered Lower Caves 17430 | -6/Lower Caves | Encountered a Warlord checkpoint 17504 | -6/Lower Caves | Learned Factory emergency access door positions 17630 | -6/Lower Caves | Discovered new exit (range 13) 17645 | -6/Lower Caves | Identified exit to Lower Caves 17739 | -6/Lower Caves | Entered another Lower Caves area 17740 | -6/Lower Caves | Encountered a Warlord checkpoint 17955 | -6/Lower Caves | Learned 4 Factory zone layouts 18377 | -6/Lower Caves | Attacked by a faux Warlord 18442 | -6/Lower Caves | Lost 3 parts (1n1u1w) 18765 | -6/Lower Caves | Discovered new exit (range 8) 18775 | -6/Lower Caves | Identified exit to Data Miner 18847 | -6/Lower Caves | Entered Data Miner 18847 | -6/Data Miner | Accompanied by 2 allies 18847 | -6/Data Miner | Discovered new exit (range 6) 18882 | -6/Data Miner | Met Data Miner 18918 | -6/Data Miner | Learned location of Section 7 (-2) 18918 | -6/Data Miner | Acquired the access code to Warlord's prototype stash 18955 | -6/Data Miner | Received God Mode back door access code from Data Miner 19000 | -6/Data Miner | Identified exit to Proximity Caves 19002 | -6/Data Miner | Entered Proximity Caves 19002 | -5/Proximity Caves | Accompanied by 2 allies 19017 | -5/Proximity Caves | Attracted the attention of an 0b10 checkpoint 19018 | -5/Proximity Caves | Escorted by Enhanced Grunt 19049 | -5/Proximity Caves | Lost 3 parts (2n1w) 19253 | -5/Proximity Caves | System corruption reached 10% 19429 | -5/Proximity Caves | Spotted B-75 Beast 19456 | -5/Proximity Caves | Allies destroyed B-75 Beast 19481 | -5/Proximity Caves | Lost 3 parts (1n1u1w) 19521 | -5/Proximity Caves | Identified exit to Factory 19729 | -5/Proximity Caves | Entered Factory 19729 | -5/Factory | Accompanied by 3 allies 19729 | -5/Factory | Evolved 2 slots: Utility x2 20508 | -5/Factory | Crushed by falling debris 20509 | -5/Factory | System corruption reached 10% 20539 | -5/Factory | Lost 3 parts (2u1w) 20612 | -5/Factory | Found Prototype Device 20612 | -5/Factory | Identified Exp. Thermal Shield 20773 | -5/Factory | Spotted B-75 Beast 20845 | -5/Factory | Garrison activated, responded to threat 20926 | -5/Factory | Lost 5 parts (3n1u1w) 21036 | -5/Factory | Lost 3 parts (1n2u) 21962 | -5/Factory | Discovered new exit (range 6) 21972 | -5/Factory | Identified exit to Extension 22065 | -5/Factory | Build established: Bothacker-Gunner 22129 | -5/Factory | First assault squad dispatched 22196 | -5/Factory | Fabricated Exp. Sensor Array? 22255 | -5/Factory | Incoming investigation squad redirected 22451 | -5/Factory | Lost 3 parts (1n1u1w) 22665 | -5/Factory | Build established: Bothacker-Mutant 22681 | -5/Factory | Sucked down chute 22681 | -5/Factory | Entered Waste 22699 | -5/Waste | Found Prototype Processor 22699 | -5/Waste | Identified Exp. Armor Integrity Analyzer 22776 | -5/Waste | Spotted C-40 Crusher 22779 | -5/Waste | Spotted C-40 Crusher 22786 | -5/Waste | Spotted C-40 Crusher 22794 | -5/Waste | Spotted C-40 Crusher 22796 | -5/Waste | Spotted C-40 Crusher 22838 | -5/Waste | Crushed by Compactor (1 part destroyed, 1 dropped) 22967 | -5/Waste | Spotted C-40 Crusher 22992 | -5/Waste | Destroyed C-40 Crusher 23008 | -5/Waste | Found Damper Plating 23068 | -5/Waste | Destroyed C-40 Crusher 23123 | -5/Waste | Destroyed C-40 Crusher 23140 | -5/Waste | Found Damper Plating 23399 | -5/Waste | Discovered new exit (range 16) 23477 | -5/Waste | Identified exit to Factory 23493 | -5/Waste | Entered Factory 23783 | -5/Factory | Fabricated Imp. Arc Projector (x1) 24127 | -5/Factory | Identified exit to Upper Caves 24533 | -5/Factory | Build established: Hauler-Mutant 24992 | -5/Factory | Entered Extension 25285 | -5/Extension | Identified exit to Cetus 25417 | -5/Extension | Disrupted transfer network 25436 | -5/Extension | Rescued A7 25592 | -5/Extension | First assault squad dispatched 25620 | -5/Extension | Incoming assault squad redirected 25718 | -5/Extension | Destroyed 8 combat bots 25852 | -5/Extension | Rescued a captive Derelict 25852 | -5/Extension | Rescued a captive Derelict 26019 | -5/Extension | Rescued a captive Derelict 26019 | -5/Extension | Rescued a captive Derelict 26083 | -5/Extension | Rescued a captive Derelict 26259 | -5/Extension | Discovered new exit (range 10) 26291 | -5/Extension | Entered Cetus 26291 | -5/Cetus | Accompanied by 13 allies (A7) 26296 | -5/Cetus | Acquired a Cetus Manufacturing Module code from A7 26314 | -5/Cetus | Spotted Cetus Guard 26314 | -5/Cetus | Spotted Cetus Guard 26316 | -5/Cetus | Spotted Cetus Guard 26317 | -5/Cetus | Spotted Cetus Guard 26324 | -5/Cetus | Destroyed Cetus Guard 26329 | -5/Cetus | Allies destroyed Cetus Guard 26333 | -5/Cetus | Allies destroyed Cetus Guard 26335 | -5/Cetus | Destroyed Cetus Guard 26430 | -5/Cetus | Started Cetus Manufacturing Module 26444 | -5/Cetus | Escorted A7 to Cetus Mainframe 26455 | -5/Cetus | Manufactured an Enhanced Grunt 26475 | -5/Cetus | Discovered new exit (range 15) 26480 | -5/Cetus | Manufactured an Enhanced Grunt 26505 | -5/Cetus | Manufactured an Enhanced Grunt 26525 | -5/Cetus | Spotted Cetus Guard 26525 | -5/Cetus | Spotted Cetus Guard 26527 | -5/Cetus | Spotted Cetus Guard 26527 | -5/Cetus | Spotted Cetus Guard 26530 | -5/Cetus | Manufactured an Enhanced Grunt 26536 | -5/Cetus | Allies destroyed Cetus Guard 26538 | -5/Cetus | Allies destroyed Cetus Guard 26539 | -5/Cetus | Allies destroyed Cetus Guard 26542 | -5/Cetus | Discovered new exit (range 16) 26545 | -5/Cetus | Allies destroyed Cetus Guard 26554 | -5/Cetus | Met Revision 17 26555 | -5/Cetus | Manufactured an Enhanced Grunt 26567 | -5/Cetus | Cetus Manufacturing Module disabled 26641 | -5/Cetus | Identified exit to Archives 26651 | -5/Cetus | Entered Archives 26651 | -5/Archives | Accompanied by 12 allies (A7) 26656 | -5/Archives | Received a hacking code to weaken MAIN.C 26790 | -5/Archives | Discovered new exit (range 16) 26828 | -5/Archives | Discovered new exit (range 15) 27058 | -5/Archives | Build established: Scavenger-Skirmisher 28035 | -5/Archives | Discovered new exit (range 16) 28120 | -5/Archives | Identified exit to Hub_04(d) 28127 | -5/Archives | Entered Hub_04(d) 28127 | -5/Hub_04(d) | Accompanied by 7 allies 28521 | -5/Hub_04(d) | Build established: Commander-Mutant 28534 | -5/Hub_04(d) | Discovered new exit (range 12) 28552 | -5/Hub_04(d) | Identified exit to Factory 28663 | -5/Hub_04(d) | Network Hub disabled 28690 | -5/Hub_04(d) | Network Hub disabled 28710 | -5/Hub_04(d) | Spotted Lightning 28722 | -5/Hub_04(d) | Spotted Lightning 28723 | -5/Hub_04(d) | Spotted Lightning 28724 | -5/Hub_04(d) | Entered Factory 28724 | -4/Factory | Evolved 2 slots: Utility x2 28966 | -4/Factory | Build established: Hauler-Mutant 29165 | -4/Factory | Sucked down chute 29165 | -4/Factory | Entered Waste 29193 | -4/Waste | Spotted C-40 Crusher 29232 | -4/Waste | Destroyed C-40 Crusher 29247 | -4/Waste | Spotted C-40 Crusher 29263 | -4/Waste | Found Damper Plating 29269 | -4/Waste | Spotted C-40 Crusher 29357 | -4/Waste | Spotted C-40 Crusher 29370 | -4/Waste | Spotted C-40 Crusher 29431 | -4/Waste | Destroyed C-40 Crusher 29452 | -4/Waste | Destroyed C-40 Crusher 29494 | -4/Waste | Destroyed C-40 Crusher 29581 | -4/Waste | Destroyed C-40 Crusher 29593 | -4/Waste | Warlord forces began an assault 29824 | -4/Waste | Discovered new exit (range 13) 30101 | -4/Waste | Identified exit to Factory 30165 | -4/Waste | Entered Factory 30165 | -4/Factory | Accompanied by 14 allies 30356 | -4/Factory | Build established: Scavenger-Mutant 30690 | -4/Factory | Garrison activated, responded to threat 31087 | -4/Factory | Build established: Hauler-Mutant 31351 | -4/Factory | Garrison activated, responded to threat 31762 | -4/Factory | Discovered new exit (range 8) 31783 | -4/Factory | Identified exit to Research 31921 | -4/Factory | Build established: Hauler-Tank 31956 | -4/Factory | Discovered new exit (range 9) 31971 | -4/Factory | Identified exit to Upper Caves 32413 | -4/Factory | Discovered new exit (range 15) 32415 | -4/Factory | First assault squad dispatched 32443 | -4/Factory | Identified exit to Armory 32445 | -4/Factory | Entered Armory 32471 | -4/Armory | Lost 3 parts (1n2u) 32595 | -4/Armory | Repaired Centrium Heavy Treads 33095 | -4/Armory | Build established: Hauler-Mutant 33636 | -4/Armory | Repaired Centrium Medium Armor Plating 33997 | -4/Armory | Build established: Scavenger-Mutant 34720 | -4/Armory | Fabricated Adv. Hacking Suite? 34761 | -4/Armory | Fabricated Exp. Transmission Jammer (x1) 34847 | -4/Armory | Fabricated Exp. Transmission Jammer? 34890 | -4/Armory | Found Prototype Slashing Weapon 34890 | -4/Armory | Identified Molecular Scythe 34994 | -4/Armory | P-70 Sage assimilated allied Swordsman 7c 35007 | -4/Armory | P-70 Sage assimilated allied Swordsman 7a 35019 | -4/Armory | Build established: Scavenger-Tank 35226 | -4/Armory | Found Unknown Device 35226 | -4/Armory | Identified Antimissile System 35603 | -4/Armory | Discovered new exit (range 3) 35605 | -4/Armory | Identified exit to Lab 35715 | -4/Armory | Found Unknown Device 35715 | -4/Armory | Identified Quantum Capacitor 35740 | -4/Armory | First assault squad dispatched 35749 | -4/Armory | P-70 Sage assimilated allied Warrior 7f 35764 | -4/Armory | System corruption reached 10% 35964 | -4/Armory | Entered Lab 35964 | -4/Lab | Discovered exit to Research (range 9) 35994 | -4/Lab | Unable to decrypt terminal 35997 | -4/Lab | Detected for breach 36000 | -4/Lab | Gained access to the hidden lab's interior 36005 | -4/Lab | Confronted by A5 36156 | -4/Lab | Destroyed A5 36190 | -4/Lab | Found Prototype Protection 36190 | -4/Lab | Identified Med. Regenerative Plating 36214 | -4/Lab | Found Prototype Hackware 36214 | -4/Lab | Identified Exp. Hacking Suite 36287 | -4/Lab | Unable to decrypt terminal 36365 | -4/Lab | Found Alien Artifact 36365 | -4/Lab | Identified Core Reset Matrix 36365 | -4/Lab | Used Core Reset Matrix 36369 | -4/Lab | Sensed 3 artifacts in vicinity 36391 | -4/Lab | Found Core Expander 36391 | -4/Lab | Installed Core Expander, added new Weapon slot 36408 | -4/Lab | Found Integrated Reactor 36408 | -4/Lab | Installed Integrated Reactor, increased core energy generation (+10) 36467 | -4/Lab | Build established: Hacker-Mutant 36534 | -4/Lab | Found Prototype Special Weapon 36534 | -4/Lab | Identified Gui. Remote Datajack 36562 | -4/Lab | Unable to decrypt terminal 36562 | -4/Lab | Unable to decrypt terminal 36562 | -4/Lab | Unable to decrypt terminal 36594 | -4/Lab | Found Prototype Protection 36594 | -4/Lab | Identified Exp. Powered Armor 36602 | -4/Lab | Found Prototype Hackware 36602 | -4/Lab | Identified Deep Network Scanner 36616 | -4/Lab | Found Prototype Energy Gun 36616 | -4/Lab | Identified Tachyon Dispersion Ray 36622 | -4/Lab | Found Prototype Energy Cannon 36622 | -4/Lab | Identified Warp Cannon 36700 | -4/Lab | Found Transdimensional Reconstructor 36759 | -4/Lab | Unable to decrypt terminal 36865 | -4/Lab | Discovered exit to Research (range 5) 38426 | -4/Lab | Unable to decrypt terminal 40049 | -4/Lab | Entered Research 40049 | -3/Research | Evolved 2 slots: Utility x2 40097 | -3/Research | Identified exit to Testing 40594 | -3/Research | Repaired Centrium Medium Armor Plating 40900 | -3/Research | Intercept squad dispatched 40912 | -3/Research | Spotted Tracker 40913 | -3/Research | Destroyed Tracker 40944 | -3/Research | Spotted Combat Programmer 40961 | -3/Research | Destroyed Combat Programmer 40972 | -3/Research | Spotted B-86 Titan 40977 | -3/Research | Found Prototype Device 40977 | -3/Research | Identified Exp. Phase Shifter 41017 | -3/Research | Destroyed B-86 Titan 41750 | -3/Research | Spotted B-86 Titan 41817 | -3/Research | Destroyed B-86 Titan 41854 | -3/Research | Intercept squad dispatched 41877 | -3/Research | Spotted Tracker 41878 | -3/Research | Spotted Tracker 41879 | -3/Research | Spotted Tracker 41887 | -3/Research | Garrison activated, responded to threat 41895 | -3/Research | Destroyed Tracker 41898 | -3/Research | Destroyed Tracker 41932 | -3/Research | Spotted Combat Programmer 41941 | -3/Research | Fabricated Exp. Sensor Array? 41947 | -3/Research | Spotted Combat Programmer 41956 | -3/Research | System corruption reached 10% 41956 | -3/Research | Spotted Combat Programmer 41964 | -3/Research | Destroyed Combat Programmer 42019 | -3/Research | System corruption reached 30% 42023 | -3/Research | Warped through subspace 42035 | -3/Research | Lost 7 parts (2n5u) 42047 | -3/Research | Destroyed Tracker 42097 | -3/Research | Lost 4 parts (2u2w) 42192 | -3/Research | Destroyed 15 combat bots 42197 | -3/Research | Lost 5 parts (1n2u2w) 42227 | -3/Research | Found Unknown Protection 42299 | -3/Research | First assault squad dispatched 42310 | -3/Research | Identified Hvy. Reflective Plating 42322 | -3/Research | Incoming assault squad redirected 42324 | -3/Research | Incoming assault squad redirected 42333 | -3/Research | Destroyed Combat Programmer 42366 | -3/Research | Fabricated Exp. Signal Interpreter? 42407 | -3/Research | Build established: Scavenger-Mutant 42454 | -3/Research | Destroyed 9 combat bots 42567 | -3/Research | Incoming assault squad redirected 42628 | -3/Research | Destroyed Combat Programmer 42801 | -3/Research | Entered Testing 43103 | -3/Testing | Identified exit to Research 43367 | -3/Testing | Fabricated Adv. Heavy Siege Treads (x2) 43472 | -3/Testing | Intercept squad dispatched 43475 | -3/Testing | Spotted Tracker 43480 | -3/Testing | Spotted Tracker 43484 | -3/Testing | Destroyed Tracker 43487 | -3/Testing | Spotted Combat Programmer 43492 | -3/Testing | Core integrity fell below 50% 43508 | -3/Testing | Destroyed Combat Programmer 43509 | -3/Testing | Spotted Combat Programmer 43509 | -3/Testing | Destroyed Tracker 43551 | -3/Testing | First assault squad dispatched 43563 | -3/Testing | Destroyed Combat Programmer 43566 | -3/Testing | Incoming assault squad redirected 43569 | -3/Testing | Lost 3 parts (2u1w) 43624 | -3/Testing | Destroyed 8 combat bots 43624 | -3/Testing | Lost 3 parts (1p1n1u) 43704 | -3/Testing | Lost 4 parts (3u1w) 43821 | -3/Testing | Build established: Hauler-Mutant 43925 | -3/Testing | Spotted Striker 44069 | -3/Testing | Incoming assault squad redirected 44098 | -3/Testing | Found Prototype Energy Cannon 44105 | -3/Testing | Found Prototype Energy Cannon 44173 | -3/Testing | Found Prototype Processor 44173 | -3/Testing | Identified Exp. Target Analyzer 44281 | -3/Testing | Intercept squad dispatched 44282 | -3/Testing | Spotted Tracker 44287 | -3/Testing | Spotted Combat Programmer 44290 | -3/Testing | Destroyed Tracker 44300 | -3/Testing | Destroyed Combat Programmer 44310 | -3/Testing | Found Prototype Device 44310 | -3/Testing | Identified Exp. Phase Shifter 44364 | -3/Testing | Lost 4 parts (2u2w) 44475 | -3/Testing | Found Prototype Device 44475 | -3/Testing | Identified EM Dispersion Field 44528 | -3/Testing | Scanned by Researcher 44637 | -3/Testing | Entered Research 44637 | -2/Research | Evolved 2 slots: Propulsion x2 44797 | -2/Research | Fabricated Exp. Sensor Array (x1) 44925 | -2/Research | Found Prototype Launcher 44925 | -2/Research | Identified Hellfire Missile Launcher 44929 | -2/Research | First assault squad dispatched 44951 | -2/Research | Incoming assault squad redirected 45241 | -2/Research | System corruption reached 10% 45253 | -2/Research | Lost 5 parts (1p1n1u2w) 45277 | -2/Research | Found Prototype Device 45277 | -2/Research | Identified Exp. Focal Shield 45336 | -2/Research | Identified Potential Cannon (x2) 45361 | -2/Research | Intercept squad dispatched 45397 | -2/Research | Spotted Tracker 45398 | -2/Research | Spotted Tracker 45401 | -2/Research | Destroyed Tracker 45403 | -2/Research | Destroyed Tracker 45432 | -2/Research | Lost 8 parts (2n4u2w) 45457 | -2/Research | Spotted Combat Programmer 45477 | -2/Research | Spotted Combat Programmer 45479 | -2/Research | Destroyed Combat Programmer 45483 | -2/Research | Destroyed Combat Programmer 45521 | -2/Research | Lost 3 parts (3u) 45921 | -2/Research | System corruption reached 30% 45954 | -2/Research | Incoming assault squad redirected 45990 | -2/Research | Lost 3 parts (1n2u) 46139 | -2/Research | Garrison activated, responded to threat 46405 | -2/Research | Incoming assault squad redirected 46443 | -2/Research | Garrison activated, responded to threat 46470 | -2/Research | Incoming assault squad redirected 46477 | -2/Research | High security lockdown imminent 46526 | -2/Research | Spotted B-90 Cyclops 46528 | -2/Research | Core integrity fell below 50% 46530 | -2/Research | Lost 6 parts (2n2u2w) 46557 | -2/Research | High security lockdown engaged 46593 | -2/Research | Emitted hypermatrix ping 46595 | -2/Research | Lost 11 parts (1p4n4u2w) 46598 | -2/Research | Assembled emerged from beneath the floor 46626 | -2/Research | Assembled emerged from beneath the floor 46626 | -2/Research | Discovered new exit (range 12) 46630 | -2/Research | Intercept squad dispatched 46632 | -2/Research | Identified exit to Access 46632 | -2/Research | Entered Access 46632 | -1/Access | Evolved 2 slots: Utility x2 46775 | -1/Access | Energy Cycler disabled 46861 | -1/Access | Build established: Alien-Mutant 46870 | -1/Access | System corruption reached 10% 46912 | -1/Access | Intercept squad dispatched 46929 | -1/Access | Spotted Tracker 46929 | -1/Access | Spotted Tracker 46943 | -1/Access | Core integrity fell below 50% 46944 | -1/Access | Emitted hypermatrix ping 46947 | -1/Access | Core integrity fell below 20% 46949 | -1/Access | Assembled emerged from beneath the floor 46949 | -1/Access | Garrison activated, responded to threat 46958 | -1/Access | Destroyed by Tracker with Linked Autogun Last Messages --------------- 46913_ Adv. Targeting Computer permanently disabled. 46913_ Destabilizing: Short circuit. 46920_ Biometal Heavy Treads destroyed. 46924_ Imp. Hacking Suite destroyed. 46927_ System corrupted: Matter fused (-7). 46931_ Broken Adv. Targeting Computer destroyed. 46936_ Connecting with Terminal... 46936_ ALERT: Suspicious activity at Terminal A008. Dispatching Investigation squad. 46938_ Terminal disabled. 46939_ Imp. Heavy Treads destroyed. 46940_ Slammed into Tracker. 46940_ Destabilizing: Core damaged (-80). 46944_ Emitted hypermatrix ping. 46949_ ALERT: Activating Garrison Access A001. 46949_ U-05 Engineer lays Concrete. 46950_ B-74 Champion emerges from the garrison. 46950_ L-61 Swordsman emerges from the garrison. 46957_ Exp. Signal Interpreter destroyed. [Achievement: Punisher] Map ----- +----------------------------------------------------+ | | | | | | | | | | | | | | | | | ?????????????????????????????????????????????????? | | ?????????????????????????????????????????????????? | | ??????????????????????? ?????????????????????? | | ????????????????????? ????????????????????? | | ?????????????????? = ????????????????????? | | ???????????????? ?????????????????????? | | ????????????????? ?????????????????????? | | ?????????????????? ?????????????????????? | | ??????????????????# ! ?????????????????????? | | ??????????????????? ?????????????????????? | | ???????????????????# #?????????????????????? | | ???????????????????# #?????????????????????? | | ???????????????????# #?????????????????????? | | ???????????????????# #?????????????????????? | | ???? ??????????# #?????????????????????? | | ???# ????????# k#?????????????????????? | | ???# #???????# #?????????????????????? | | ???# #???????# @ #?????????????????????? | | ???# #???????# #?????????????????????? | | ???# #???????# #?????????????????????? | | ???# #???????# #?????????????????????? | | ???# #???????# #?????????????????????? | | ???# #???????# #?????????????????????? | | ???# #???????# u #?????????????????????? | | ???# #???????# #?????????????????????? | | ???# #???????# #?????????????????????? | | #### #???????# #?????????????????????? | | #???????# #?????????????????????? | | ^ #???????# #?????????????????????? | | #???????# #?????????????????????? | | #???????#s #?????????????????????? | | "" "" #???????# #?????????????????????? | | ""T" #???????# #?????????????????????? | | """ #???????# #?????????????????????? | | #???????# #?????????????????????? | | #???????# #?????????????????????? | | #???????# #?????????????????????? | | ## #???????# #?????????????????????? | | ?# ######### #?????????????????????? | | ?# #?????????????????????? | | ?# #?????????????????????? | | ## #?????????????????????? | +----------------------------------------------------+ Best States ------------- Heat Dissipation 99 Coolant Potential 80 Energy Generation 35 Energy Capacity 1350 Matter Stores 674 Matter Capacity 700 Sight Range 22 Robot Scan Range 30 Terrain Scan Density 10 Jamming Range 22 Armor Coverage 2850 Resistance: KI 30 Resistance: TH 25 Resistance: EX 25 Resistance: EM 90 Core Shielding 30 Weapon Shielding 66 Point Defense Rating 240 Weapon Cycling 30 Phase Shifting 20 Evasion (%) 60 Targeting Accuracy 8 Melee Accuracy 6 Target Analysis 12 Core Analysis 10 Armor Integrity Analysis 66 Recoil Reduction 6 Particle Charging 30 Salvage Targeting 3 Stasis Canceling 2 Offensive Hacking 41 Defensive Hacking 14 Relay Coupler Types 33 Relay Coupler Value 1 Item Schematics ----------------- Adv. Heavy Siege Treads | -3/Research | Hacked Exp. Sensor Array | -3/Research | Hacked Exp. Signal Interpreter | -3/Research | Hacked Robot Schematics ------------------ S-43 Plague | -3/Research | Hacked Fabricated ------------ Smartbomb Launcher | x1 | -7/Factory Lrn. Sensor Array | x1 | -6/Factory Adv. Signal Interpreter | x2 | -6/Factory Exp. Sensor Array | x1 | -5/Factory Imp. Arc Projector | x1 | -5/Factory Adv. Hacking Suite | x1 | -4/Armory Exp. Transmission Jammer | x1 | -4/Armory Exp. Transmission Jammer | x1 | -4/Armory Exp. Sensor Array | x1 | -3/Research Exp. Signal Interpreter | x1 | -3/Research Adv. Heavy Siege Treads | x2 | -3/Testing Exp. Sensor Array | x1 | -2/Research Alien Tech Used ----------------- Core Reset Matrix Core Expander Integrated Reactor Transdimensional Reconstructor Achievements -------------- Anyone Home? Brute Force Great Explorer Punisher Z1$+NX3F=JRE3_ZNQR Challenges ------------ None Game ------ Seed NeutrinoSpikedBlade Manual? 0 Play Time 10:41:05 Cumulative 117.8 hours Start 2021.06.14 @ 00:14:21 End 2021.06.20 @ 04:06:01 Sessions 7 Manual Loads 0 Difficulty Rogue Special Mode None Game No. 40 Rogue 40 Adventurer 0 Explorer 0 Win Type - Total 1 Types 1/0/0/0/0/0/0/0/0 Lore% 56 Gallery% 66 Achievement% 52 Wizard Run 0 Options --------- ASCII 0 Keyboard 0 Movement Mouse Keybinds 0 Fullscreen 1 Font 18/SmallcapsGlow Map View 76x50 Tactical HUD 1 Map Filters NONE Filters NONE Steam 1 RUN: 837a8adf-681f-42b8-a3f0-37156cc069f2